Workbook

Sheet CrediAltoque (SI)
K2: SIMULADOR DE CUOTAS -CREDIALTOQUE
K3: ¡Hola! Usa este simulador para conocer el valor referencial de tu Pago Total de Cuota (P) mensual cuando compres en Tiendas Carsa, Marcimex y El Gallo más Gallo con tu Credialtoque. Recuerda que: - Electro hasta 30 meses - Motos has 36 meses
C5: Moneda | L5: Soles
C6: Importe Solicitado (soles S/.) | L6: 3500 | R6: Fecha Desembolso | X6: =TODAY() -> 2023-02-01
C7: Saldo de Capital | L7: =L6 -> 3500 | R7: Fecha de la 1° cuota | X7: =IF(R9<=15,DATE(YEAR(EDATE(W9,1)),MONTH(EDATE(W9,1)),DAY(15)),DATE(YEAR(EDATE(W9,2)),MONTH(EDATE(W9,1)),DAY(3))) -> 2023-03-15
C8: Saldo de Interes | L8: 0 | R8: Fecha final de vencimiento | X8: =IF(OR($H$18>0,$H$19>0),VLOOKUP($L$15,$A$35:$C$74,3,0),DATE(YEAR(EDATE(W9,L15)),MONTH(EDATE(W9,L15)),DAY(EDATE(W9,L15)))) -> 2024-02-15
C9: Tasa Anual (TEA) - Fija | L9: 83 | M9: Fecha Final de Gracia | R9: =DAY(X6) -> 1 | W9: =IF(R9<=15,DATE(YEAR(EDATE(X6+H17,1)),MONTH(EDATE(X6,0)),DAY(15)),DATE(YEAR(EDATE(X6+H17,1)),MONTH(EDATE(X6,1)),DAY(3))) -> 2023-02-15
C10: Tasa de Seguro de Desgravamen | L10: Seguro Con Retorno | W10: 360
C11: Tasa Anual (TEA) - Ajustada | L11: =+L9 -> 83 | M11: Frecuencia pago en días | W11: 30
C12: Comision por Env. Inf | L12: 0 | M12: Tasa Equivalente - Ajustada | R12: =ROUND((((L11/100+1)^(1/(W10/W11))-1)*W10/W11)*100,6) -> 61.979122 | S12: tea conv. A tem luego nominal anual
C13: Valor Asegurable | L13: 0 | M13: Días entre cuotas | R13: =(X8-W9)/L15 -> 30.41666667 | S13: dias promedio entre cuotas
C14: Tasa de Seguro Todo Riesgo | J14: =+L14*12 -> 0 | L14: 0 | M14: Factor Aplicado - Ajustada | R14: =ROUND(($R$12/100)/($W$10/$R$13),8) -> 0.05236662 | S14: tem convertida de manera nominal a los dias entre cuotas
C15: Plazo y Nro. Cuotas | J15: =L15 -> 12 | L15: 12 | M15: Factor Aplicado para la cuota - Ajustada | R15: =1/((1-((1+$R$14)^(-1*$L$15)))/$R$14) -> 0.1143363341 | S15: Factor de cuota (ok)
C16: Tasa de Costo Efectivo Anual | L16: =AI22*100 -> 95.74560879
C17: Días de Gracia | H17: 0 | M17: Interes de Gracia (Se considera la TEA Normal) | R17: =IF(H17>0,ROUND(L7*(((1+L9/100)^(ABS(H17)/W10))-1),4),ROUND(L7*(((1+L9/100)^(ABS(H17)/W10))-1),4) * -1) -> 0 | S17: Ok
C18: Mes de No Pago 1 | H18: 0 | M18: Saldo Interes +/- Interes Gracia | R18: =IF(L8 + R17>0,L8+ R17,0) -> 0
C19: Mes de No Pago 2 | H19: 0 | M19: Seg Desg de Gracia | R19: =IF(H17>0,ROUNDDOWN(L6*L10/30*H17,2),ROUNDDOWN(L6*L10/30*H17,2)*0) -> 
C20: Mes Cuota Doble 1 | H20: 0 | M20: TCEA | R20: =+$AI$33 -> 0.9574560879
C21: Mes Cuota Doble 2 | H21: 0
AH22: TIR | AI22: =(1+XIRR(AI34:AI74,AH34:AH74))^(360/365)-1 -> 0.9574560879
P23: Suavización | V23: Validador Cuota Doble
P24: Ultimo saldo de Principal | R24: =VLOOKUP(J15,$F$34:$X$74,18,FALSE) -> 423.555 | V24: Cuota Simple | X24: =+VLOOKUP("",$D$35:$W$74,19,0) -> 0
C25: 0.0035 | D25: Seguro Sin Retorno | F25: Valor de cuota por dias de gracia | J25: =+ROUND(IF(OR(H18+H19>0,H20+H21>0),R18/VLOOKUP(L15,'Calculos CrediAltoque'!$A$3:$G$243,7,FALSE),'CrediAltoque (SI)'!R18*'CrediAltoque (SI)'!$R$15),2) -> 0 | K25: =R18/SUM(AO35:INDIRECT(CONCATENATE("AE",32+J15-1))) ->  | P25: Numero de Dias | R25: =X8-W9 -> 365 | V25: Cuota Doble | X25: =+IFERROR(VLOOKUP("D",$D$35:$W$74,19,0)," ") -> 
C26: 0.011 | D26: Seguro Con Retorno | F26: Valor de cuota por capital | J26: =ROUND(IF(OR(H18 + H19 > 0,H20 + H21>0), ROUNDUP(L7/VLOOKUP(L15,'Calculos CrediAltoque'!$A$3:$G$243,7,FALSE),2),L7*$R$15),2) -> 400.18 | M26: sin desgravamen | P26: Valor de Cuota Nivelada | R26: =ROUND(+R24/ROUND(1*(((1+L11/100)^(R25/W10))-1),4),2) -> 501.01 | V26: Factor | X26: =+IFERROR(X25/X24," ") -> 
C27: 0 | D27: Endoso | F27: Valor de Seg Desg por dia de gracia | J27: =$R$19/(($J$15+COUNTIF(D35:INDIRECT(CONCATENATE("C",32+J15-1)),"D"))*(1/((1+0)^($W$11/$W$10)))) -> 
C28: =INDEX(C25:C27,MATCH(L10,D25:D27,0)) -> 0.011 | F28: Seguro de Desgravamen (FPF) | J28: =$L$6*$L$10 ->  | P28: Factor Ajuste | R28: =R26*R15 -> 57.28364675 | T28: Se copia LO DEL COSTADO a partir de la primera corrida | V28: Calce de Capital
F29: Comision por Env.Inf | J29: 0 | P29: Exceso de Int + Gracia | R29: =SUM(Y35:Y74) -> 0 | S29: =ROUND(IF(OR(H18+ H19> 0,H20 + H21>0),ROUNDUP($R$29/VLOOKUP(L15,'Calculos CrediAltoque'!$A$3:$G$243,7,FALSE),2),$R$29*$R$15),2) -> 0 | T29: 0 | V29: Suma Capital (K) | X29: =+SUM($K$35:$K$74) -> 3500
F30: Seguro Todo Riesgo | J30: =ROUND($L$13*$L$14,2) -> 0 | P30: Factor Ajuste 2 | R30: =+R24/L15 -> 35.29625 | V30: Validador | X30: =+$L$6-X29 -> -5.729816621e-11 | AB30: <- El valor tiene que ser cercano a cero.
F31: Cuota | J31: =J25+J26+J28+J29+ J30+J27 ->  | P31: Digite Factor de Ajuste Anterior mas El Actual | R31: 23.375 | S31: Se actualiza en cada simulación (Validar que la celda W28 sea cero)
C33: si | F33: si | L33: si | M33: si | R33: si | W33: Si | X33: si | AH33: TIR | AI33: =(1+XIRR(AI34:AI74,AH34:AH74))^(360/365)-1 -> 0.9574560879 | AN33: Minicronograma de Gracia
C34: Fecha Vcto. | D34: Marca | E34: Nro. Cuota (De acuerdo a Plazo) | F34: Nro. Cuota | G34: Periodo Base | H34: Tasa | I34: Nro. Dias | J34: Principal* | K34: Capital | L34: Capital | M34: Interes | N34: Interes de Gracia | O34: Interes Total | P34: Valor Cuota (variable) | Q34: Comision por Env. Inf | R34: Tasa de Seguro de Desgravamen* | S34: Importe de Gracia Desgravamen | T34: Importe Desgravamen por No Pago | U34: Seg. Desgravamen Total | V34: Seguro Todo Riesgo | W34: Cuota | X34: Saldo Principal | Y34: Exceso | Z34: Nuevo Interes I | AA34: Nuevo Desgravamen I (no se utiliza) | AB34: Nuevo Interes (SF2INT) replica columna L | AC34: Nuevo Desgravamen (SF2GRV) replica columna Q | AD34: Desgravamen Gracia replica columna R | AE34: Desgravamen No Pago S | AF34: Total Cuota (SF2PAG) igual a columna V | AH34: =+X6 -> 2023-02-01 | AI34: =-L6 -> -3500 | AK34: VALIDADORES | AN34: Dias Transcurridos Acumulados | AO34: Factor Simple Actualizacion | AP34: Principal | AQ34: Capital | AR34: Interes | AS34: Cuota Gracia | AT34: Saldo Deuda
A35: 1 | B35: =IF(A35="","",IF(A35<=$H$24,0,1)) -> 1 | C35: =IF(OR(MONTH(EDATE($W$9,E35))=$H$18,MONTH(EDATE($W$9,E35))=$H$19),IF(ABS($H$19-$H$18)=1,EDATE($W$9,E35+2),EDATE($W$9,E35+1)),EDATE($W$9,E35)) -> 2023-03-15 | D35: =IF(B35="","",IF(OR(MONTH(C35)=$H$20,MONTH(C35)=$H$21),"D","")) ->  | E35: =IF(OR(MONTH(X7)=H18, MONTH(X7)=H19),IF(ABS(H19-H18)=1,3,2),1) -> 1 | F35: =1 -> 1 | G35: =$W$10 -> 360 | H35: =IF(B35="","",$L$11) -> 83 | I35: =IF(OR((C35-W9)=28,(C35-W9)=31),30,30) -> 30 | J35: =L7 -> 3500 | K35: =IF(B35="","",IF((IF(ISERROR(MATCH(MONTH(C35),$H$20:$H$21,0))=FALSE,$J$26 + $R$31,0) + $J$26+$R$31+$T$29)-M35<0,0.01,IF(ISERROR(MATCH(MONTH(C35),$H$20:$H$21,0))=FALSE,$J$26 + $R$31,0)+ ($J$26+$R$31+$T$29)-M35)- S35 -T35-R35) -> 204.285 | L35: =K35 -> 204.285 | M35: =IF(B35="","",IF($J$26+$R$31<ROUND(ROUND(J35*(((1+(H35/100))^(I35/G35))-1),4),2),$J$26+$R$31 +-0.01,IF(ROUND(ROUND(J35*(((1+(H35/100))^(I35/G35))-1),4),2)>$J$26,$J$26+ -0.01,ROUND(ROUND(J35*(((1+(H35/100))^(I35/G35))-1),4),2)))) -> 180.77 | N35: =IF(B35="","",IF(ISERROR(MATCH(MONTH(C35),$H$20:$H$21,0))=FALSE,$J$25,0) + $J$25) -> 0 | O35: =IF(B35="","",M35+N35) -> 180.77 | P35: =IF(B35="","",K35+O35) -> 385.055 | Q35: =IF(B35="","",$J$29) -> 0 | R35: =IF(B35="","",ROUND($C$28*J35,2)) -> 38.5 | S35: =IF(B35="","",(E35-F35)*ROUNDDOWN($L$6*$C$28/30*30,2) + ROUNDDOWN($L$6*$C$28/30*H17,2)) -> 0 | T35: =IF(B35="","",IF(E35-0>1,ROUNDDOWN($J35*$L$10/30*(DATE(YEAR($C35),MONTH($C35)-1,DAY($C35))-C34),2),0)) -> 0 | U35: =IF(B35="","",R35+S35+T35) -> 38.5 | V35: =IF(B35="","",$J$30) -> 0 | W35: =IF(B35="","",P35+Q35+R35+S35+T35+V35) -> 423.555 | X35: =IF(B35="","",(ROUND(J35-L35,2))) -> 3295.72 | Y35: =IF(B35="","",IF(ROUND(ROUND(J35*(((1+(H35/100))^(I35/G35))-1),4),2) - $J$26<0,0,ROUND(ROUND(J35*(((1+(H35/100))^(I35/G35))-1),4),2) - $J$26)) -> 0 | AA35: =SUM(L35:N35) -> 385.055 | AB35: =+M35 -> 180.77 | AC35: =+R35 -> 38.5 | AD35: =+S35 -> 0 | AE35: =+T35 -> 0 | AF35: =IFERROR(AB35+K35 + Q35 + V35+AC35 + N35 + AD35 + AE35,"") -> 423.555 | AG35: =IFERROR(IF(D35="D",$J$26*2,$J$26)+R35,0) -> 438.68 | AH35: =+IF(C35="",0,C35) -> 2023-03-15 | AI35: =+IF(AF35="",0,AF35) -> 423.555 | AK35: =+IFERROR(AF35-W35,0) -> 0 | AL35: =+IFERROR(AB35-M35,0) -> 0 | AN35: =I35 -> 30 | AO35: =(1/((1+(#REF!/100))^(AN35/$W$10))*1) * IF(D35="D",2,1) ->  | AP35: =R18 -> 0 | AQ35: =AS35-AR35 ->  | AR35: =(((1+(#REF!/100))^((K35)/$W$10))-1)*AP35 ->  | AS35: =IF(D35="D",$K$25,0)+ $K$25 ->  | AT35: =AP35-AQ35 -> 
A36: =+IF(A35>=$L$15,"",A35+1) -> 2 | B36: =IF(A36="","",IF(A36<=$H$24,0,1)) -> 1 | C36: =IF(B36="","",IF(OR(MONTH(EDATE($W$9,E36))=$H$18,MONTH(EDATE($W$9,E36))=$H$19),IF(ABS($H$19-$H$18)=1,EDATE($W$9,E36+2),EDATE($W$9,E36+1)),EDATE($W$9,E36))) -> 2023-04-15 | E36: =+IF(B36="","",IF(OR(MONTH(DATE(YEAR(C35)+0.0833333333333333,MONTH(C35)+1,DAY(C35)))=$H$18,MONTH(DATE(YEAR(C35)+0.5,MONTH(C35)+1,DAY(C35)))=$H$19),IF(ABS($H$19-$H$18)=1,E35+1,E35+2),E35+1)) -> 2 | F36: =+IF(B36="","",F35+1) -> 2 | G36: =IF(B36="","",$W$10) -> 360 | H36: 83 | I36: =IF(B36="","",IF(OR((C36-C35)=28,(C36-C35)=31),30,30)) -> 30 | J36: =IF(B36="","",X35) -> 3295.72 | K36: =IF(B36="","",IF((IF(ISERROR(MATCH(MONTH(C36),$H$20:$H$21,0))=FALSE,$J$26 + $R$31,0) + $J$26+$R$31+$T$29)-M36<0,0.01,IF(ISERROR(MATCH(MONTH(C36),$H$20:$H$21,0))=FALSE,$J$26 + $R$31,0)+ ($J$26+$R$31+$T$29)-M36)- S36 -T36-R36) -> 217.085 | L36: =K36 -> 217.085 | M36: 170.22 | N36: 0 | O36: 170.22 | P36: 387.305 | Q36: 0 | R36: 36.25 | T36: =IF(B36="","",IF(E36-E35>1,ROUNDDOWN($J36*$L$10/30*(DATE(YEAR($C36),MONTH($C36)-1,DAY($C36))-C35),2),0)) -> 0 | U36: 36.25 | V36: 0 | W36: 423.555 | X36: =IF(B36="","",(ROUND(J36-L36,2))) -> 3078.64 | Y36: 0 | AA36: =SUM(L36:N36) -> 387.305 | AB36: =+M36 -> 170.22 | AC36: =+R36 -> 36.25 | AD36: =+S36 -> 0 | AE36: =+T36 -> 0 | AF36: 423.555 | AG36: 436.43 | AH36: 2023-04-15 | AI36: 423.555 | AK36: 0 | AL36: 0 | AN36: =I36 + AN35 -> 60 | AO36: =(1/((1+(#REF!/100))^(AN36/$W$10))*1) * IF(D36="D",2,1) ->  | AP36: =AT35 ->  | AQ36: =AS36-AR36 ->  | AR36: =(((1+(#REF!/100))^((K36)/$W$10))-1)*AP36 ->  | AT36: =AP36-AQ36 -> 
A37: 3 | B37: 1 | C37: 2023-05-15 | E37: 3 | F37: =+IF(B37="","",F36+1) -> 3 | G37: 360 | H37: 83 | I37: =IF(B37="","",IF(OR((C37-C36)=28,(C37-C36)=31),30,30)) -> 30 | J37: =IF(B37="","",X36) -> 3078.64 | K37: 230.675 | L37: =K37 -> 230.675 | M37: 159.01 | N37: 0 | O37: 159.01 | P37: 389.685 | Q37: 0 | R37: 33.87 | T37: 0 | U37: 33.87 | V37: 0 | W37: 423.555 | X37: 2847.97 | Y37: 0 | AA37: 389.685 | AB37: 159.01 | AC37: 33.87 | AD37: 0 | AE37: 0 | AF37: 423.555 | AG37: 434.05 | AH37: 2023-05-15 | AI37: 423.555 | AK37: 0 | AL37: 0 | AN37: 90 | AO37: =(1/((1+(#REF!/100))^(AN37/$W$10))*1) * IF(D37="D",2,1) ->  | AP37: =AT36 ->  | AR37: =(((1+(#REF!/100))^((K37)/$W$10))-1)*AP37 -> 
A38: 4 | B38: 1 | C38: 2023-06-15 | E38: 4 | F38: 4 | G38: 360 | H38: 83 | I38: 30 | J38: 2847.97 | K38: 245.125 | L38: =K38 -> 245.125 | M38: 147.1 | N38: 0 | O38: 147.1 | P38: 392.225 | Q38: 0 | R38: 31.33 | T38: 0 | U38: 31.33 | V38: 0 | W38: 423.555 | X38: 2602.84 | Y38: 0 | AA38: 392.225 | AB38: 147.1 | AC38: 31.33 | AD38: 0 | AE38: 0 | AF38: 423.555 | AG38: 431.51 | AH38: 2023-06-15 | AI38: 423.555 | AK38: 0 | AL38: 0 | AN38: 120 | AO38: =(1/((1+(#REF!/100))^(AN38/$W$10))*1) * IF(D38="D",2,1) ->  | AR38: =(((1+(#REF!/100))^((K38)/$W$10))-1)*AP38 -> 
A39: 5 | B39: 1 | C39: 2023-07-15 | E39: 5 | F39: 5 | G39: 360 | H39: 83 | I39: 30 | J39: 2602.84 | K39: 260.495 | L39: =K39 -> 260.495 | M39: 134.43 | N39: 0 | O39: 134.43 | P39: 394.925 | Q39: 0 | R39: 28.63 | T39: 0 | U39: 28.63 | V39: 0 | W39: 423.555 | X39: 2342.35 | Y39: 0 | AA39: 394.925 | AB39: 134.43 | AC39: 28.63 | AD39: 0 | AE39: 0 | AF39: 423.555 | AG39: 428.81 | AH39: 2023-07-15 | AI39: 423.555 | AK39: 0 | AL39: 0 | AN39: 150 | AO39: =(1/((1+(#REF!/100))^(AN39/$W$10))*1) * IF(D39="D",2,1) ->  | AR39: =(((1+(#REF!/100))^((K39)/$W$10))-1)*AP39 -> 
A40: 6 | B40: 1 | C40: 2023-08-15 | E40: 6 | F40: 6 | G40: 360 | H40: 83 | I40: 30 | J40: 2342.35 | K40: 276.805 | L40: =K40 -> 276.805 | M40: 120.98 | N40: 0 | O40: 120.98 | P40: 397.785 | Q40: 0 | R40: 25.77 | T40: 0 | U40: 25.77 | V40: 0 | W40: 423.555 | X40: 2065.55 | Y40: 0 | AA40: 397.785 | AB40: 120.98 | AC40: 25.77 | AD40: 0 | AE40: 0 | AF40: 423.555 | AG40: 425.95 | AH40: 2023-08-15 | AI40: 423.555 | AK40: 0 | AL40: 0 | AN40: 180 | AO40: =(1/((1+(#REF!/100))^(AN40/$W$10))*1) * IF(D40="D",2,1) ->  | AR40: =(((1+(#REF!/100))^((K40)/$W$10))-1)*AP40 -> 
A41: 7 | B41: 1 | C41: 2023-09-15 | E41: 7 | F41: 7 | G41: 360 | H41: 83 | I41: 30 | J41: 2065.55 | K41: 294.155 | L41: =K41 -> 294.155 | M41: 106.68 | N41: 0 | O41: 106.68 | P41: 400.835 | Q41: 0 | R41: 22.72 | T41: 0 | U41: 22.72 | V41: 0 | W41: 423.555 | X41: 1771.4 | Y41: 0 | AA41: 400.835 | AB41: 106.68 | AC41: 22.72 | AD41: 0 | AE41: 0 | AF41: 423.555 | AG41: 422.9 | AH41: 2023-09-15 | AI41: 423.555 | AK41: 0 | AL41: 0 | AN41: 210 | AO41: =(1/((1+(#REF!/100))^(AN41/$W$10))*1) * IF(D41="D",2,1) ->  | AR41: =(((1+(#REF!/100))^((K41)/$W$10))-1)*AP41 -> 
A42: 8 | B42: 1 | C42: 2023-10-15 | E42: 8 | F42: 8 | G42: 360 | H42: 83 | I42: 30 | J42: 1771.4 | K42: 312.575 | L42: =K42 -> 312.575 | M42: 91.49 | N42: 0 | O42: 91.49 | P42: 404.065 | Q42: 0 | R42: 19.49 | T42: 0 | U42: 19.49 | V42: 0 | W42: 423.555 | X42: 1458.83 | Y42: 0 | AA42: 404.065 | AB42: 91.49 | AC42: 19.49 | AD42: 0 | AE42: 0 | AF42: 423.555 | AG42: 419.67 | AH42: 2023-10-15 | AI42: 423.555 | AK42: 0 | AL42: 0 | AN42: 240 | AO42: =(1/((1+(#REF!/100))^(AN42/$W$10))*1) * IF(D42="D",2,1) ->  | AR42: =(((1+(#REF!/100))^((K42)/$W$10))-1)*AP42 -> 
A43: 9 | B43: 1 | C43: 2023-11-15 | E43: 9 | F43: 9 | G43: 360 | H43: 83 | I43: 30 | J43: 1458.83 | K43: 332.155 | L43: =K43 -> 332.155 | M43: 75.35 | N43: 0 | O43: 75.35 | P43: 407.505 | Q43: 0 | R43: 16.05 | T43: 0 | U43: 16.05 | V43: 0 | W43: 423.555 | X43: 1126.68 | Y43: 0 | AA43: 407.505 | AB43: 75.35 | AC43: 16.05 | AD43: 0 | AE43: 0 | AF43: 423.555 | AG43: 416.23 | AH43: 2023-11-15 | AI43: 423.555 | AK43: 0 | AL43: 0 | AN43: 270 | AO43: =(1/((1+(#REF!/100))^(AN43/$W$10))*1) * IF(D43="D",2,1) ->  | AR43: =(((1+(#REF!/100))^((K43)/$W$10))-1)*AP43 -> 
A44: 10 | B44: 1 | C44: 2023-12-15 | E44: 10 | F44: 10 | G44: 360 | H44: 83 | I44: 30 | J44: 1126.68 | K44: 352.975 | L44: =K44 -> 352.975 | M44: 58.19 | N44: 0 | O44: 58.19 | P44: 411.165 | Q44: 0 | R44: 12.39 | T44: 0 | U44: 12.39 | V44: 0 | W44: 423.555 | X44: 773.7 | Y44: 0 | AA44: 411.165 | AB44: 58.19 | AC44: 12.39 | AD44: 0 | AE44: 0 | AF44: 423.555 | AG44: 412.57 | AH44: 2023-12-15 | AI44: 423.555 | AK44: 0 | AL44: 0 | AN44: 300 | AO44: =(1/((1+(#REF!/100))^(AN44/$W$10))*1) * IF(D44="D",2,1) ->  | AR44: =(((1+(#REF!/100))^((K44)/$W$10))-1)*AP44 -> 
A45: 11 | B45: 1 | C45: 2024-01-15 | E45: 11 | F45: 11 | G45: 360 | H45: 83 | I45: 30 | J45: 773.7 | K45: 375.085 | L45: =K45 -> 375.085 | M45: 39.96 | N45: 0 | O45: 39.96 | P45: 415.045 | Q45: 0 | R45: 8.51 | T45: 0 | U45: 8.51 | V45: 0 | W45: 423.555 | X45: 398.61 | Y45: 0 | AA45: 415.045 | AB45: 39.96 | AC45: 8.51 | AD45: 0 | AE45: 0 | AF45: 423.555 | AG45: 408.69 | AH45: 2024-01-15 | AI45: 423.555 | AK45: 0 | AL45: 0 | AN45: 330 | AO45: =(1/((1+(#REF!/100))^(AN45/$W$10))*1) * IF(D45="D",2,1) ->  | AR45: =(((1+(#REF!/100))^((K45)/$W$10))-1)*AP45 -> 
A46: 12 | B46: 1 | C46: 2024-02-15 | E46: 12 | F46: 12 | G46: 360 | H46: 83 | I46: 30 | J46: 398.61 | K46: 398.585 | L46: =X45 -> 398.61 | M46: =IF(B46="","",IF($J$26+$R$31<ROUND(ROUND(J46*(((1+(H46/100))^(I46/G46))-1),4),2),$J$26+$R$31 +-0.01,IF(ROUND(ROUND(J46*(((1+(H46/100))^(I46/G46))-1),4),2)>$J$26,$J$26+ -0.01,ROUND(ROUND(J46*(((1+(H46/100))^(I46/G46))-1),4),2)))) -> 20.59 | N46: 0 | O46: 20.59 | P46: 419.175 | Q46: 0 | R46: 4.38 | T46: 0 | U46: 4.38 | V46: 0 | W46: =IF(B46="","",P46+Q46+R46+S46+T46+V46) -> 423.555 | X46: 0 | Y46: 0 | AA46: 419.2 | AB46: 20.59 | AC46: 4.38 | AD46: 0 | AE46: 0 | AF46: 423.555 | AG46: 404.56 | AH46: 2024-02-15 | AI46: 423.555 | AK46: 0 | AL46: 0 | AN46: 360 | AO46: =(1/((1+(#REF!/100))^(AN46/$W$10))*1) * IF(D46="D",2,1) ->  | AR46: =(((1+(#REF!/100))^((K46)/$W$10))-1)*AP46 -> 
L47: =K47 ->  | W47: =IF(B47="","",P47+Q47+R47+S47+T47+V47) ->  | AA47: 0 | AD47: 0 | AG47: 0 | AH47: =+IF(C47="",0,C47) -> 00:00:00 | AI47: =+IF(AF47="",0,AF47) -> 0 | AK47: 0 | AL47: 0 | AO47: =(1/((1+(#REF!/100))^(AN47/$W$10))*1) * IF(D47="D",2,1) ->  | AR47: =(((1+(#REF!/100))^((K47)/$W$10))-1)*AP47 -> 
AA48: 0 | AD48: 0 | AG48: 0 | AH48: =+IF(C48="",0,C48) -> 00:00:00 | AI48: =+IF(AF48="",0,AF48) -> 0 | AK48: 0 | AL48: 0 | AO48: =(1/((1+(#REF!/100))^(AN48/$W$10))*1) * IF(D48="D",2,1) ->  | AR48: =(((1+(#REF!/100))^((K48)/$W$10))-1)*AP48 -> 
AA49: 0 | AD49: 0 | AG49: 0 | AH49: 00:00:00 | AI49: 0 | AK49: 0 | AL49: 0 | AO49: =(1/((1+(#REF!/100))^(AN49/$W$10))*1) * IF(D49="D",2,1) ->  | AR49: =(((1+(#REF!/100))^((K49)/$W$10))-1)*AP49 -> 
AA50: 0 | AD50: 0 | AG50: 0 | AH50: 00:00:00 | AI50: 0 | AK50: 0 | AL50: 0 | AO50: =(1/((1+(#REF!/100))^(AN50/$W$10))*1) * IF(D50="D",2,1) ->  | AR50: =(((1+(#REF!/100))^((K50)/$W$10))-1)*AP50 -> 
AA51: 0 | AD51: 0 | AG51: 0 | AH51: 00:00:00 | AI51: 0 | AK51: 0 | AL51: 0 | AO51: =(1/((1+(#REF!/100))^(AN51/$W$10))*1) * IF(D51="D",2,1) ->  | AR51: =(((1+(#REF!/100))^((K51)/$W$10))-1)*AP51 -> 
AA52: 0 | AD52: 0 | AG52: 0 | AH52: 00:00:00 | AI52: 0 | AK52: 0 | AL52: 0 | AO52: =(1/((1+(#REF!/100))^(AN52/$W$10))*1) * IF(D52="D",2,1) ->  | AR52: =(((1+(#REF!/100))^((K52)/$W$10))-1)*AP52 -> 
AA53: 0 | AD53: 0 | AG53: 0 | AH53: 00:00:00 | AI53: 0 | AK53: 0 | AL53: 0 | AO53: =(1/((1+(#REF!/100))^(AN53/$W$10))*1) * IF(D53="D",2,1) ->  | AR53: =(((1+(#REF!/100))^((K53)/$W$10))-1)*AP53 -> 
L54: =X53 ->  | AA54: 0 | AD54: 0 | AG54: 0 | AH54: 00:00:00 | AI54: 0 | AK54: 0 | AL54: 0 | AO54: =(1/((1+(#REF!/100))^(AN54/$W$10))*1) * IF(D54="D",2,1) ->  | AR54: =(((1+(#REF!/100))^((K54)/$W$10))-1)*AP54 -> 
L55: =K55 ->  | AA55: 0 | AD55: 0 | AG55: 0 | AH55: 00:00:00 | AI55: 0 | AK55: 0 | AL55: 0 | AO55: =(1/((1+(#REF!/100))^(AN55/$W$10))*1) * IF(D55="D",2,1) ->  | AR55: =(((1+(#REF!/100))^((K55)/$W$10))-1)*AP55 -> 
L56: =K56 ->  | AA56: 0 | AD56: 0 | AG56: 0 | AH56: 00:00:00 | AI56: 0 | AK56: 0 | AL56: 0 | AO56: =(1/((1+(#REF!/100))^(AN56/$W$10))*1) * IF(D56="D",2,1) ->  | AR56: =(((1+(#REF!/100))^((K56)/$W$10))-1)*AP56 -> 
L57: =K57 ->  | AA57: 0 | AD57: 0 | AG57: 0 | AH57: 00:00:00 | AI57: 0 | AK57: 0 | AL57: 0 | AO57: =(1/((1+(#REF!/100))^(AN57/$W$10))*1) * IF(D57="D",2,1) ->  | AR57: =(((1+(#REF!/100))^((K57)/$W$10))-1)*AP57 -> 
L58: =X57 ->  | AA58: 0 | AD58: 0 | AG58: 0 | AH58: 00:00:00 | AI58: 0 | AK58: 0 | AL58: 0 | AO58: =(1/((1+(#REF!/100))^(AN58/$W$10))*1) * IF(D58="D",2,1) ->  | AR58: =(((1+(#REF!/100))^((K58)/$W$10))-1)*AP58 -> 
AA59: 0 | AD59: 0 | AG59: 0 | AH59: 00:00:00 | AI59: 0 | AK59: 0 | AL59: 0 | AO59: =(1/((1+(#REF!/100))^(AN59/$W$10))*1) * IF(D59="D",2,1) ->  | AR59: =(((1+(#REF!/100))^((K59)/$W$10))-1)*AP59 -> 
AA60: 0 | AD60: 0 | AG60: 0 | AH60: 00:00:00 | AI60: 0 | AK60: 0 | AL60: 0 | AO60: =(1/((1+(#REF!/100))^(AN60/$W$10))*1) * IF(D60="D",2,1) ->  | AR60: =(((1+(#REF!/100))^((K60)/$W$10))-1)*AP60 -> 
AA61: 0 | AD61: 0 | AG61: 0 | AH61: 00:00:00 | AI61: 0 | AK61: 0 | AL61: 0 | AO61: =(1/((1+(#REF!/100))^(AN61/$W$10))*1) * IF(D61="D",2,1) ->  | AR61: =(((1+(#REF!/100))^((K61)/$W$10))-1)*AP61 -> 
AA62: 0 | AD62: 0 | AG62: 0 | AH62: 00:00:00 | AI62: 0 | AK62: 0 | AL62: 0 | AO62: =(1/((1+(#REF!/100))^(AN62/$W$10))*1) * IF(D62="D",2,1) ->  | AR62: =(((1+(#REF!/100))^((K62)/$W$10))-1)*AP62 -> 
AA63: 0 | AD63: 0 | AG63: 0 | AH63: 00:00:00 | AI63: 0 | AK63: 0 | AL63: 0 | AO63: =(1/((1+(#REF!/100))^(AN63/$W$10))*1) * IF(D63="D",2,1) ->  | AR63: =(((1+(#REF!/100))^((K63)/$W$10))-1)*AP63 -> 
AA64: 0 | AD64: 0 | AG64: 0 | AH64: 00:00:00 | AI64: 0 | AK64: 0 | AL64: 0 | AO64: =(1/((1+(#REF!/100))^(AN64/$W$10))*1) * IF(D64="D",2,1) ->  | AR64: =(((1+(#REF!/100))^((K64)/$W$10))-1)*AP64 -> 
AA65: 0 | AD65: 0 | AG65: 0 | AH65: 00:00:00 | AI65: 0 | AK65: 0 | AL65: 0 | AO65: =(1/((1+(#REF!/100))^(AN65/$W$10))*1) * IF(D65="D",2,1) ->  | AR65: =(((1+(#REF!/100))^((K65)/$W$10))-1)*AP65 -> 
AA66: 0 | AD66: 0 | AG66: 0 | AH66: 00:00:00 | AI66: 0 | AK66: 0 | AL66: 0 | AO66: =(1/((1+(#REF!/100))^(AN66/$W$10))*1) * IF(D66="D",2,1) ->  | AR66: =(((1+(#REF!/100))^((K66)/$W$10))-1)*AP66 -> 
AA67: 0 | AD67: 0 | AG67: 0 | AH67: 00:00:00 | AI67: 0 | AK67: 0 | AL67: 0 | AO67: =(1/((1+(#REF!/100))^(AN67/$W$10))*1) * IF(D67="D",2,1) ->  | AR67: =(((1+(#REF!/100))^((K67)/$W$10))-1)*AP67 -> 
AA68: 0 | AD68: 0 | AG68: 0 | AH68: 00:00:00 | AI68: 0 | AK68: 0 | AL68: 0 | AO68: =(1/((1+(#REF!/100))^(AN68/$W$10))*1) * IF(D68="D",2,1) ->  | AR68: =(((1+(#REF!/100))^((K68)/$W$10))-1)*AP68 -> 
AA69: 0 | AD69: 0 | AG69: 0 | AH69: 00:00:00 | AI69: 0 | AK69: 0 | AL69: 0 | AO69: =(1/((1+(#REF!/100))^(AN69/$W$10))*1) * IF(D69="D",2,1) ->  | AR69: =(((1+(#REF!/100))^((K69)/$W$10))-1)*AP69 -> 
AA70: 0 | AD70: 0 | AG70: 0 | AH70: 00:00:00 | AI70: 0 | AK70: 0 | AL70: 0 | AO70: =(1/((1+(#REF!/100))^(AN70/$W$10))*1) * IF(D70="D",2,1) ->  | AR70: =(((1+(#REF!/100))^((K70)/$W$10))-1)*AP70 -> 
AA71: 0 | AD71: 0 | AG71: 0 | AH71: 00:00:00 | AI71: 0 | AK71: 0 | AL71: 0 | AO71: =(1/((1+(#REF!/100))^(AN71/$W$10))*1) * IF(D71="D",2,1) ->  | AR71: =(((1+(#REF!/100))^((K71)/$W$10))-1)*AP71 -> 
AA72: 0 | AD72: 0 | AG72: 0 | AH72: 00:00:00 | AI72: 0 | AK72: 0 | AL72: 0 | AO72: =(1/((1+(#REF!/100))^(AN72/$W$10))*1) * IF(D72="D",2,1) ->  | AR72: =(((1+(#REF!/100))^((K72)/$W$10))-1)*AP72 -> 
AA73: 0 | AD73: 0 | AG73: 0 | AH73: 00:00:00 | AI73: 0 | AK73: 0 | AL73: 0 | AO73: =(1/((1+(#REF!/100))^(AN73/$W$10))*1) * IF(D73="D",2,1) ->  | AR73: =(((1+(#REF!/100))^((K73)/$W$10))-1)*AP73 -> 
AA74: 0 | AD74: 0 | AG74: 0 | AH74: 00:00:00 | AI74: 0 | AK74: 0 | AL74: 0 | AO74: =(1/((1+(#REF!/100))^(AN74/$W$10))*1) * IF(D74="D",2,1) ->  | AR74: =(((1+(#REF!/100))^((K74)/$W$10))-1)*AP74 -> 
C76: Totales | K76: =+SUM(K35:K74) -> 3500 | L76: 3500.025 | M76: 1304.77 | N76: 0 | O76: 1304.77 | P76: 4804.77 | Q76: 0 | R76: 277.89 | S76: 0 | U76: =+SUM(U35:U74) -> 277.89 | V76: =+SUM(V35:V74) -> 0 | W76: =+SUM(W35:W74) -> 5082.66 | Y76: =+SUM(Y35:Y74) -> 0 | Z76: =+SUM(Z35:Z74) -> 0 | AA76: =+SUM(AA35:AA74) -> 4804.795 | AB76: =+SUM(AB35:AB74) -> 1304.77 | AC76: =+SUM(AC35:AC74) -> 277.89 | AF76: =+SUM(AF35:AF74) -> 5082.66 | AK76: =+AF76-W76 -> 0 | AL76: =+AB76-M76 -> 0
C77: Validador
C78: Banco Pichincha - Derechos reservado 2022
C79: La información contenida en esta simulación en esta simulación es referencial, y el cálculo se ha efectuado en base a la información ingresada.
C80: Esta simulación no incluye ITF (Impuesto a las Transacciones Financieras).
C81: (*) La TEA aplicada a esta simulación es fija.
C82: Esta simulación no significa la aprobación del crédito, la cual está sujeta a la evaluación creditica del Banco.
C83: El seguro desgravamen es obligatorio y se calcula sobre el saldo insoluto de la deuda. El costo del seguro es el cobrado por la aseguradora
C84: El cliente podrá adquirir el seguro de desgravamen en nuestras oficinas o de forma particular. En este último caso, deberá endosarlo a favor del Banco,
C85: y el seguro deberá tener las mismas coberturas que el/los comercializados(s) por el Banco y cubrir el 100% el importe de capital adeudado.
C86: El cliente puede optar por el Seguro de Desgravamen con devolución. Aplica solo para créditos financiados desde 25 meses a más. Devolución del 25% de las primas pagadas al término del cronograma inicial.
C87: La cuota de gracia es el período de gracia que transcurre entre la fecha de desembolso del crédito y el día en que se inicia el devengo de la cuota a pagar,
C88: lo cual ocurre un mes antes del primer vencimiento de pago.
C89: Esta información se proporciona de acuerdo con el Reglamento de Gestión de Conducta de Mercado del Sistema Financiero.

Sheet Calculos CrediAltoque (hidden)
A1: Factores utilizados en Meses de No Pago para cálculo del valor cuota
A3: N° de Cuota | B3: Equivalente | C3: Fecha | D3: Mes | E3: Marca Cuota No Pago | F3: Factor (10) | G3: Acumulado
A4: 1 | B4: =IF(E4<>"C",IF(ISERROR(1+B3)=TRUE,1,1+B3),IF(ISNUMBER(B3),B3,1)) -> 1 | C4: =+'CrediAltoque (SI)'!$X$7 -> 2023-03-15 | D4: =MONTH(C4) -> 3 | E4: =IF(ISERROR(MATCH(D4,'CrediAltoque (SI)'!$H$18:$H$19,0))=FALSE,"C",IF(ISERROR(MATCH(D4,'CrediAltoque (SI)'!$H$20:$H$21,0))=FALSE,"D","")) ->  | F4: =IF(E4="C",0,IF(E4 ="D",ROUND(1/((1+'CrediAltoque (SI)'!$R$14)^A4),9) * 2,ROUND(1/((1+'CrediAltoque (SI)'!$R$14)^A4),9))) -> 0.950239186 | G4: =ROUND(F4,9) -> 0.950239186
A5: =A4+1 -> 2 | B5: =IF(E5<>"C",IF(ISERROR(1+B4)=TRUE,1,1+B4),IF(ISNUMBER(B4),B4,1)) -> 2 | C5: =DATE(YEAR(C4) + 1/12,MONTH(C4)+1,DAY(C4)) -> 2023-04-15 | D5: 4 | E5: =IF(ISERROR(MATCH(D5,'CrediAltoque (SI)'!$H$18:$H$19,0))=FALSE,"C",IF(ISERROR(MATCH(D5,'CrediAltoque (SI)'!$H$20:$H$21,0))=FALSE,"D","")) ->  | F5: =IF(E5="C",0,IF(E5 ="D",ROUND(1/((1+'CrediAltoque (SI)'!$R$14)^A5),9) * 2,ROUND(1/((1+'CrediAltoque (SI)'!$R$14)^A5),9))) -> 0.90295451 | G5: =G4+ROUND(F5,9) -> 1.853193696
A6: 3 | B6: 3 | C6: 2023-05-15 | D6: 5 | E6: =IF(ISERROR(MATCH(D6,'CrediAltoque (SI)'!$H$18:$H$19,0))=FALSE,"C",IF(ISERROR(MATCH(D6,'CrediAltoque (SI)'!$H$20:$H$21,0))=FALSE,"D","")) ->  | F6: =IF(E6="C",0,IF(E6 ="D",ROUND(1/((1+'CrediAltoque (SI)'!$R$14)^A6),9) * 2,ROUND(1/((1+'CrediAltoque (SI)'!$R$14)^A6),9))) -> 0.858022758 | G6: =G5+ROUND(F6,9) -> 2.711216454
A7: 4 | B7: 4 | C7: 2023-06-15 | D7: 6 | E7: =IF(ISERROR(MATCH(D7,'CrediAltoque (SI)'!$H$18:$H$19,0))=FALSE,"C",IF(ISERROR(MATCH(D7,'CrediAltoque (SI)'!$H$20:$H$21,0))=FALSE,"D","")) ->  | F7: =IF(E7="C",0,IF(E7 ="D",ROUND(1/((1+'CrediAltoque (SI)'!$R$14)^A7),9) * 2,ROUND(1/((1+'CrediAltoque (SI)'!$R$14)^A7),9))) -> 0.815326847 | G7: 3.526543301
A8: 5 | B8: 5 | C8: 2023-07-15 | D8: 7 | E8: =IF(ISERROR(MATCH(D8,'CrediAltoque (SI)'!$H$18:$H$19,0))=FALSE,"C",IF(ISERROR(MATCH(D8,'CrediAltoque (SI)'!$H$20:$H$21,0))=FALSE,"D","")) ->  | F8: =IF(E8="C",0,IF(E8 ="D",ROUND(1/((1+'CrediAltoque (SI)'!$R$14)^A8),9) * 2,ROUND(1/((1+'CrediAltoque (SI)'!$R$14)^A8),9))) -> 0.774755519 | G8: 4.30129882
A9: 6 | B9: 6 | C9: 2023-08-15 | D9: 8 | E9: =IF(ISERROR(MATCH(D9,'CrediAltoque (SI)'!$H$18:$H$19,0))=FALSE,"C",IF(ISERROR(MATCH(D9,'CrediAltoque (SI)'!$H$20:$H$21,0))=FALSE,"D","")) ->  | F9: =IF(E9="C",0,IF(E9 ="D",ROUND(1/((1+'CrediAltoque (SI)'!$R$14)^A9),9) * 2,ROUND(1/((1+'CrediAltoque (SI)'!$R$14)^A9),9))) -> 0.736203054 | G9: 5.037501874
A10: 7 | B10: 7 | C10: 2023-09-15 | D10: 9 | E10: =IF(ISERROR(MATCH(D10,'CrediAltoque (SI)'!$H$18:$H$19,0))=FALSE,"C",IF(ISERROR(MATCH(D10,'CrediAltoque (SI)'!$H$20:$H$21,0))=FALSE,"D","")) ->  | F10: =IF(E10="C",0,IF(E10 ="D",ROUND(1/((1+'CrediAltoque (SI)'!$R$14)^A10),9) * 2,ROUND(1/((1+'CrediAltoque (SI)'!$R$14)^A10),9))) -> 0.69956899 | G10: 5.737070864
A11: 8 | B11: 8 | C11: 2023-10-15 | D11: 10 | E11: =IF(ISERROR(MATCH(D11,'CrediAltoque (SI)'!$H$18:$H$19,0))=FALSE,"C",IF(ISERROR(MATCH(D11,'CrediAltoque (SI)'!$H$20:$H$21,0))=FALSE,"D","")) ->  | F11: =IF(E11="C",0,IF(E11 ="D",ROUND(1/((1+'CrediAltoque (SI)'!$R$14)^A11),9) * 2,ROUND(1/((1+'CrediAltoque (SI)'!$R$14)^A11),9))) -> 0.664757868 | G11: 6.401828732
A12: 9 | B12: 9 | C12: 2023-11-15 | D12: 11 | E12: =IF(ISERROR(MATCH(D12,'CrediAltoque (SI)'!$H$18:$H$19,0))=FALSE,"C",IF(ISERROR(MATCH(D12,'CrediAltoque (SI)'!$H$20:$H$21,0))=FALSE,"D","")) ->  | F12: =IF(E12="C",0,IF(E12 ="D",ROUND(1/((1+'CrediAltoque (SI)'!$R$14)^A12),9) * 2,ROUND(1/((1+'CrediAltoque (SI)'!$R$14)^A12),9))) -> 0.631678975 | G12: 7.033507707
A13: 10 | B13: 10 | C13: 2023-12-15 | D13: 12 | E13: =IF(ISERROR(MATCH(D13,'CrediAltoque (SI)'!$H$18:$H$19,0))=FALSE,"C",IF(ISERROR(MATCH(D13,'CrediAltoque (SI)'!$H$20:$H$21,0))=FALSE,"D","")) ->  | F13: =IF(E13="C",0,IF(E13 ="D",ROUND(1/((1+'CrediAltoque (SI)'!$R$14)^A13),9) * 2,ROUND(1/((1+'CrediAltoque (SI)'!$R$14)^A13),9))) -> 0.600246115 | G13: 7.633753822
A14: 11 | B14: 11 | C14: 2024-01-15 | D14: 1 | E14: =IF(ISERROR(MATCH(D14,'CrediAltoque (SI)'!$H$18:$H$19,0))=FALSE,"C",IF(ISERROR(MATCH(D14,'CrediAltoque (SI)'!$H$20:$H$21,0))=FALSE,"D","")) ->  | F14: =IF(E14="C",0,IF(E14 ="D",ROUND(1/((1+'CrediAltoque (SI)'!$R$14)^A14),9) * 2,ROUND(1/((1+'CrediAltoque (SI)'!$R$14)^A14),9))) -> 0.570377379 | G14: 8.204131201
A15: 12 | B15: 12 | C15: 2024-02-15 | D15: 2 | E15: =IF(ISERROR(MATCH(D15,'CrediAltoque (SI)'!$H$18:$H$19,0))=FALSE,"C",IF(ISERROR(MATCH(D15,'CrediAltoque (SI)'!$H$20:$H$21,0))=FALSE,"D","")) ->  | F15: =IF(E15="C",0,IF(E15 ="D",ROUND(1/((1+'CrediAltoque (SI)'!$R$14)^A15),9) * 2,ROUND(1/((1+'CrediAltoque (SI)'!$R$14)^A15),9))) -> 0.541994936 | G15: 8.746126137
A16: 13 | B16: 13 | C16: 2024-03-15 | D16: 3 | E16: =IF(ISERROR(MATCH(D16,'CrediAltoque (SI)'!$H$18:$H$19,0))=FALSE,"C",IF(ISERROR(MATCH(D16,'CrediAltoque (SI)'!$H$20:$H$21,0))=FALSE,"D","")) ->  | F16: =IF(E16="C",0,IF(E16 ="D",ROUND(1/((1+'CrediAltoque (SI)'!$R$14)^A16),9) * 2,ROUND(1/((1+'CrediAltoque (SI)'!$R$14)^A16),9))) -> 0.515024827 | G16: 9.261150964
A17: 14 | B17: 14 | C17: 2024-04-15 | D17: 4 | E17: =IF(ISERROR(MATCH(D17,'CrediAltoque (SI)'!$H$18:$H$19,0))=FALSE,"C",IF(ISERROR(MATCH(D17,'CrediAltoque (SI)'!$H$20:$H$21,0))=FALSE,"D","")) ->  | F17: =IF(E17="C",0,IF(E17 ="D",ROUND(1/((1+'CrediAltoque (SI)'!$R$14)^A17),9) * 2,ROUND(1/((1+'CrediAltoque (SI)'!$R$14)^A17),9))) -> 0.489396772 | G17: 9.750547736
A18: 15 | B18: 15 | C18: 2024-05-15 | D18: 5 | E18: =IF(ISERROR(MATCH(D18,'CrediAltoque (SI)'!$H$18:$H$19,0))=FALSE,"C",IF(ISERROR(MATCH(D18,'CrediAltoque (SI)'!$H$20:$H$21,0))=FALSE,"D","")) ->  | F18: =IF(E18="C",0,IF(E18 ="D",ROUND(1/((1+'CrediAltoque (SI)'!$R$14)^A18),9) * 2,ROUND(1/((1+'CrediAltoque (SI)'!$R$14)^A18),9))) -> 0.46504399 | G18: 10.21559173
A19: 16 | B19: 16 | C19: 2024-06-15 | D19: 6 | E19: =IF(ISERROR(MATCH(D19,'CrediAltoque (SI)'!$H$18:$H$19,0))=FALSE,"C",IF(ISERROR(MATCH(D19,'CrediAltoque (SI)'!$H$20:$H$21,0))=FALSE,"D","")) ->  | F19: =IF(E19="C",0,IF(E19 ="D",ROUND(1/((1+'CrediAltoque (SI)'!$R$14)^A19),9) * 2,ROUND(1/((1+'CrediAltoque (SI)'!$R$14)^A19),9))) -> 0.441903022 | G19: 10.65749475
A20: 17 | B20: 17 | C20: 2024-07-15 | D20: 7 | E20: =IF(ISERROR(MATCH(D20,'CrediAltoque (SI)'!$H$18:$H$19,0))=FALSE,"C",IF(ISERROR(MATCH(D20,'CrediAltoque (SI)'!$H$20:$H$21,0))=FALSE,"D","")) ->  | F20: =IF(E20="C",0,IF(E20 ="D",ROUND(1/((1+'CrediAltoque (SI)'!$R$14)^A20),9) * 2,ROUND(1/((1+'CrediAltoque (SI)'!$R$14)^A20),9))) -> 0.419913568 | G20: 11.07740832
A21: 18 | B21: 18 | C21: 2024-08-15 | D21: 8 | E21: =IF(ISERROR(MATCH(D21,'CrediAltoque (SI)'!$H$18:$H$19,0))=FALSE,"C",IF(ISERROR(MATCH(D21,'CrediAltoque (SI)'!$H$20:$H$21,0))=FALSE,"D","")) ->  | F21: =IF(E21="C",0,IF(E21 ="D",ROUND(1/((1+'CrediAltoque (SI)'!$R$14)^A21),9) * 2,ROUND(1/((1+'CrediAltoque (SI)'!$R$14)^A21),9))) -> 0.399018327 | G21: 11.47642664
A22: 19 | B22: 19 | C22: 2024-09-15 | D22: 9 | E22: =IF(ISERROR(MATCH(D22,'CrediAltoque (SI)'!$H$18:$H$19,0))=FALSE,"C",IF(ISERROR(MATCH(D22,'CrediAltoque (SI)'!$H$20:$H$21,0))=FALSE,"D","")) ->  | F22: =IF(E22="C",0,IF(E22 ="D",ROUND(1/((1+'CrediAltoque (SI)'!$R$14)^A22),9) * 2,ROUND(1/((1+'CrediAltoque (SI)'!$R$14)^A22),9))) -> 0.37916285 | G22: 11.85558949
A23: 20 | B23: 20 | C23: 2024-10-15 | D23: 10 | E23: =IF(ISERROR(MATCH(D23,'CrediAltoque (SI)'!$H$18:$H$19,0))=FALSE,"C",IF(ISERROR(MATCH(D23,'CrediAltoque (SI)'!$H$20:$H$21,0))=FALSE,"D","")) ->  | F23: =IF(E23="C",0,IF(E23 ="D",ROUND(1/((1+'CrediAltoque (SI)'!$R$14)^A23),9) * 2,ROUND(1/((1+'CrediAltoque (SI)'!$R$14)^A23),9))) -> 0.360295398 | G23: 12.21588489
A24: 21 | B24: 21 | C24: 2024-11-15 | D24: 11 | E24: =IF(ISERROR(MATCH(D24,'CrediAltoque (SI)'!$H$18:$H$19,0))=FALSE,"C",IF(ISERROR(MATCH(D24,'CrediAltoque (SI)'!$H$20:$H$21,0))=FALSE,"D","")) ->  | F24: =IF(E24="C",0,IF(E24 ="D",ROUND(1/((1+'CrediAltoque (SI)'!$R$14)^A24),9) * 2,ROUND(1/((1+'CrediAltoque (SI)'!$R$14)^A24),9))) -> 0.342366806 | G24: 12.5582517
A25: 22 | B25: 22 | C25: 2024-12-15 | D25: 12 | E25: =IF(ISERROR(MATCH(D25,'CrediAltoque (SI)'!$H$18:$H$19,0))=FALSE,"C",IF(ISERROR(MATCH(D25,'CrediAltoque (SI)'!$H$20:$H$21,0))=FALSE,"D","")) ->  | F25: =IF(E25="C",0,IF(E25 ="D",ROUND(1/((1+'CrediAltoque (SI)'!$R$14)^A25),9) * 2,ROUND(1/((1+'CrediAltoque (SI)'!$R$14)^A25),9))) -> 0.325330355 | G25: 12.88358205
A26: 23 | B26: 23 | C26: 2025-01-15 | D26: 1 | E26: =IF(ISERROR(MATCH(D26,'CrediAltoque (SI)'!$H$18:$H$19,0))=FALSE,"C",IF(ISERROR(MATCH(D26,'CrediAltoque (SI)'!$H$20:$H$21,0))=FALSE,"D","")) ->  | F26: =IF(E26="C",0,IF(E26 ="D",ROUND(1/((1+'CrediAltoque (SI)'!$R$14)^A26),9) * 2,ROUND(1/((1+'CrediAltoque (SI)'!$R$14)^A26),9))) -> 0.309141651 | G26: 13.1927237
A27: 24 | B27: 24 | C27: 2025-02-15 | D27: 2 | E27: =IF(ISERROR(MATCH(D27,'CrediAltoque (SI)'!$H$18:$H$19,0))=FALSE,"C",IF(ISERROR(MATCH(D27,'CrediAltoque (SI)'!$H$20:$H$21,0))=FALSE,"D","")) ->  | F27: =IF(E27="C",0,IF(E27 ="D",ROUND(1/((1+'CrediAltoque (SI)'!$R$14)^A27),9) * 2,ROUND(1/((1+'CrediAltoque (SI)'!$R$14)^A27),9))) -> 0.293758511 | G27: 13.48648221
A28: 25 | B28: 25 | C28: 2025-03-15 | D28: 3 | E28: =IF(ISERROR(MATCH(D28,'CrediAltoque (SI)'!$H$18:$H$19,0))=FALSE,"C",IF(ISERROR(MATCH(D28,'CrediAltoque (SI)'!$H$20:$H$21,0))=FALSE,"D","")) ->  | F28: =IF(E28="C",0,IF(E28 ="D",ROUND(1/((1+'CrediAltoque (SI)'!$R$14)^A28),9) * 2,ROUND(1/((1+'CrediAltoque (SI)'!$R$14)^A28),9))) -> 0.279140848 | G28: 13.76562306
A29: 26 | B29: 26 | C29: 2025-04-15 | D29: 4 | E29: =IF(ISERROR(MATCH(D29,'CrediAltoque (SI)'!$H$18:$H$19,0))=FALSE,"C",IF(ISERROR(MATCH(D29,'CrediAltoque (SI)'!$H$20:$H$21,0))=FALSE,"D","")) ->  | F29: =IF(E29="C",0,IF(E29 ="D",ROUND(1/((1+'CrediAltoque (SI)'!$R$14)^A29),9) * 2,ROUND(1/((1+'CrediAltoque (SI)'!$R$14)^A29),9))) -> 0.265250572 | G29: 14.03087363
A30: 27 | B30: 27 | C30: 2025-05-15 | D30: 5 | E30: =IF(ISERROR(MATCH(D30,'CrediAltoque (SI)'!$H$18:$H$19,0))=FALSE,"C",IF(ISERROR(MATCH(D30,'CrediAltoque (SI)'!$H$20:$H$21,0))=FALSE,"D","")) ->  | F30: =IF(E30="C",0,IF(E30 ="D",ROUND(1/((1+'CrediAltoque (SI)'!$R$14)^A30),9) * 2,ROUND(1/((1+'CrediAltoque (SI)'!$R$14)^A30),9))) -> 0.252051488 | G30: 14.28292512
A31: 28 | B31: 28 | C31: 2025-06-15 | D31: 6 | E31: =IF(ISERROR(MATCH(D31,'CrediAltoque (SI)'!$H$18:$H$19,0))=FALSE,"C",IF(ISERROR(MATCH(D31,'CrediAltoque (SI)'!$H$20:$H$21,0))=FALSE,"D","")) ->  | F31: =IF(E31="C",0,IF(E31 ="D",ROUND(1/((1+'CrediAltoque (SI)'!$R$14)^A31),9) * 2,ROUND(1/((1+'CrediAltoque (SI)'!$R$14)^A31),9))) -> 0.2395092 | G31: 14.52243432
A32: 29 | B32: 29 | C32: 2025-07-15 | D32: 7 | E32: =IF(ISERROR(MATCH(D32,'CrediAltoque (SI)'!$H$18:$H$19,0))=FALSE,"C",IF(ISERROR(MATCH(D32,'CrediAltoque (SI)'!$H$20:$H$21,0))=FALSE,"D","")) ->  | F32: =IF(E32="C",0,IF(E32 ="D",ROUND(1/((1+'CrediAltoque (SI)'!$R$14)^A32),9) * 2,ROUND(1/((1+'CrediAltoque (SI)'!$R$14)^A32),9))) -> 0.227591028 | G32: 14.75002535
A33: 30 | B33: 30 | C33: 2025-08-15 | D33: 8 | E33: =IF(ISERROR(MATCH(D33,'CrediAltoque (SI)'!$H$18:$H$19,0))=FALSE,"C",IF(ISERROR(MATCH(D33,'CrediAltoque (SI)'!$H$20:$H$21,0))=FALSE,"D","")) ->  | F33: =IF(E33="C",0,IF(E33 ="D",ROUND(1/((1+'CrediAltoque (SI)'!$R$14)^A33),9) * 2,ROUND(1/((1+'CrediAltoque (SI)'!$R$14)^A33),9))) -> 0.216265913 | G33: 14.96629126
A34: 31 | B34: 31 | C34: 2025-09-15 | D34: 9 | E34: =IF(ISERROR(MATCH(D34,'CrediAltoque (SI)'!$H$18:$H$19,0))=FALSE,"C",IF(ISERROR(MATCH(D34,'CrediAltoque (SI)'!$H$20:$H$21,0))=FALSE,"D","")) ->  | F34: =IF(E34="C",0,IF(E34 ="D",ROUND(1/((1+'CrediAltoque (SI)'!$R$14)^A34),9) * 2,ROUND(1/((1+'CrediAltoque (SI)'!$R$14)^A34),9))) -> 0.205504345 | G34: 15.17179561
A35: 32 | B35: 32 | C35: 2025-10-15 | D35: 10 | E35: =IF(ISERROR(MATCH(D35,'CrediAltoque (SI)'!$H$18:$H$19,0))=FALSE,"C",IF(ISERROR(MATCH(D35,'CrediAltoque (SI)'!$H$20:$H$21,0))=FALSE,"D","")) ->  | F35: =IF(E35="C",0,IF(E35 ="D",ROUND(1/((1+'CrediAltoque (SI)'!$R$14)^A35),9) * 2,ROUND(1/((1+'CrediAltoque (SI)'!$R$14)^A35),9))) -> 0.195278281 | G35: 15.36707389
A36: 33 | B36: 33 | C36: 2025-11-15 | D36: 11 | E36: =IF(ISERROR(MATCH(D36,'CrediAltoque (SI)'!$H$18:$H$19,0))=FALSE,"C",IF(ISERROR(MATCH(D36,'CrediAltoque (SI)'!$H$20:$H$21,0))=FALSE,"D","")) ->  | F36: =IF(E36="C",0,IF(E36 ="D",ROUND(1/((1+'CrediAltoque (SI)'!$R$14)^A36),9) * 2,ROUND(1/((1+'CrediAltoque (SI)'!$R$14)^A36),9))) -> 0.185561075 | G36: 15.55263496
A37: 34 | B37: 34 | C37: 2025-12-15 | D37: 12 | E37: =IF(ISERROR(MATCH(D37,'CrediAltoque (SI)'!$H$18:$H$19,0))=FALSE,"C",IF(ISERROR(MATCH(D37,'CrediAltoque (SI)'!$H$20:$H$21,0))=FALSE,"D","")) ->  | F37: =IF(E37="C",0,IF(E37 ="D",ROUND(1/((1+'CrediAltoque (SI)'!$R$14)^A37),9) * 2,ROUND(1/((1+'CrediAltoque (SI)'!$R$14)^A37),9))) -> 0.176327405 | G37: 15.72896237
A38: 35 | B38: 35 | C38: 2026-01-15 | D38: 1 | E38: =IF(ISERROR(MATCH(D38,'CrediAltoque (SI)'!$H$18:$H$19,0))=FALSE,"C",IF(ISERROR(MATCH(D38,'CrediAltoque (SI)'!$H$20:$H$21,0))=FALSE,"D","")) ->  | F38: =IF(E38="C",0,IF(E38 ="D",ROUND(1/((1+'CrediAltoque (SI)'!$R$14)^A38),9) * 2,ROUND(1/((1+'CrediAltoque (SI)'!$R$14)^A38),9))) -> 0.167553209 | G38: 15.89651558
A39: 36 | B39: 36 | C39: 2026-02-15 | D39: 2 | E39: =IF(ISERROR(MATCH(D39,'CrediAltoque (SI)'!$H$18:$H$19,0))=FALSE,"C",IF(ISERROR(MATCH(D39,'CrediAltoque (SI)'!$H$20:$H$21,0))=FALSE,"D","")) ->  | F39: =IF(E39="C",0,IF(E39 ="D",ROUND(1/((1+'CrediAltoque (SI)'!$R$14)^A39),9) * 2,ROUND(1/((1+'CrediAltoque (SI)'!$R$14)^A39),9))) -> 0.159215625 | G39: 16.0557312
A40: 37 | B40: 37 | C40: 2026-03-15 | D40: 3 | E40: =IF(ISERROR(MATCH(D40,'CrediAltoque (SI)'!$H$18:$H$19,0))=FALSE,"C",IF(ISERROR(MATCH(D40,'CrediAltoque (SI)'!$H$20:$H$21,0))=FALSE,"D","")) ->  | F40: =IF(E40="C",0,IF(E40 ="D",ROUND(1/((1+'CrediAltoque (SI)'!$R$14)^A40),9) * 2,ROUND(1/((1+'CrediAltoque (SI)'!$R$14)^A40),9))) -> 0.151292926 | G40: 16.20702413
A41: 38 | B41: 38 | C41: 2026-04-15 | D41: 4 | E41: =IF(ISERROR(MATCH(D41,'CrediAltoque (SI)'!$H$18:$H$19,0))=FALSE,"C",IF(ISERROR(MATCH(D41,'CrediAltoque (SI)'!$H$20:$H$21,0))=FALSE,"D","")) ->  | F41: =IF(E41="C",0,IF(E41 ="D",ROUND(1/((1+'CrediAltoque (SI)'!$R$14)^A41),9) * 2,ROUND(1/((1+'CrediAltoque (SI)'!$R$14)^A41),9))) -> 0.143764467 | G41: 16.3507886
A42: 39 | B42: 39 | C42: 2026-05-15 | D42: 5 | E42: =IF(ISERROR(MATCH(D42,'CrediAltoque (SI)'!$H$18:$H$19,0))=FALSE,"C",IF(ISERROR(MATCH(D42,'CrediAltoque (SI)'!$H$20:$H$21,0))=FALSE,"D","")) ->  | F42: =IF(E42="C",0,IF(E42 ="D",ROUND(1/((1+'CrediAltoque (SI)'!$R$14)^A42),9) * 2,ROUND(1/((1+'CrediAltoque (SI)'!$R$14)^A42),9))) -> 0.13661063 | G42: 16.48739923
A43: 40 | B43: 40 | C43: 2026-06-15 | D43: 6 | E43: =IF(ISERROR(MATCH(D43,'CrediAltoque (SI)'!$H$18:$H$19,0))=FALSE,"C",IF(ISERROR(MATCH(D43,'CrediAltoque (SI)'!$H$20:$H$21,0))=FALSE,"D","")) ->  | F43: =IF(E43="C",0,IF(E43 ="D",ROUND(1/((1+'CrediAltoque (SI)'!$R$14)^A43),9) * 2,ROUND(1/((1+'CrediAltoque (SI)'!$R$14)^A43),9))) -> 0.129812774 | G43: 16.617212
A44: 41 | B44: 41 | C44: 2026-07-15 | D44: 7 | E44: =IF(ISERROR(MATCH(D44,'CrediAltoque (SI)'!$H$18:$H$19,0))=FALSE,"C",IF(ISERROR(MATCH(D44,'CrediAltoque (SI)'!$H$20:$H$21,0))=FALSE,"D","")) ->  | F44: =IF(E44="C",0,IF(E44 ="D",ROUND(1/((1+'CrediAltoque (SI)'!$R$14)^A44),9) * 2,ROUND(1/((1+'CrediAltoque (SI)'!$R$14)^A44),9))) -> 0.123353184 | G44: 16.74056518
A45: 42 | B45: 42 | C45: 2026-08-15 | D45: 8 | E45: =IF(ISERROR(MATCH(D45,'CrediAltoque (SI)'!$H$18:$H$19,0))=FALSE,"C",IF(ISERROR(MATCH(D45,'CrediAltoque (SI)'!$H$20:$H$21,0))=FALSE,"D","")) ->  | F45: =IF(E45="C",0,IF(E45 ="D",ROUND(1/((1+'CrediAltoque (SI)'!$R$14)^A45),9) * 2,ROUND(1/((1+'CrediAltoque (SI)'!$R$14)^A45),9))) -> 0.11721503 | G45: 16.85778021
A46: 43 | B46: 43 | C46: 2026-09-15 | D46: 9 | E46: =IF(ISERROR(MATCH(D46,'CrediAltoque (SI)'!$H$18:$H$19,0))=FALSE,"C",IF(ISERROR(MATCH(D46,'CrediAltoque (SI)'!$H$20:$H$21,0))=FALSE,"D","")) ->  | F46: =IF(E46="C",0,IF(E46 ="D",ROUND(1/((1+'CrediAltoque (SI)'!$R$14)^A46),9) * 2,ROUND(1/((1+'CrediAltoque (SI)'!$R$14)^A46),9))) -> 0.111382314 | G46: 16.96916253
A47: 44 | B47: 44 | C47: 2026-10-15 | D47: 10 | E47: =IF(ISERROR(MATCH(D47,'CrediAltoque (SI)'!$H$18:$H$19,0))=FALSE,"C",IF(ISERROR(MATCH(D47,'CrediAltoque (SI)'!$H$20:$H$21,0))=FALSE,"D","")) ->  | F47: =IF(E47="C",0,IF(E47 ="D",ROUND(1/((1+'CrediAltoque (SI)'!$R$14)^A47),9) * 2,ROUND(1/((1+'CrediAltoque (SI)'!$R$14)^A47),9))) -> 0.10583984 | G47: 17.07500237
A48: 45 | B48: 45 | C48: 2026-11-15 | D48: 11 | E48: =IF(ISERROR(MATCH(D48,'CrediAltoque (SI)'!$H$18:$H$19,0))=FALSE,"C",IF(ISERROR(MATCH(D48,'CrediAltoque (SI)'!$H$20:$H$21,0))=FALSE,"D","")) ->  | F48: =IF(E48="C",0,IF(E48 ="D",ROUND(1/((1+'CrediAltoque (SI)'!$R$14)^A48),9) * 2,ROUND(1/((1+'CrediAltoque (SI)'!$R$14)^A48),9))) -> 0.100573163 | G48: 17.17557553
A49: 46 | B49: 46 | C49: 2026-12-15 | D49: 12 | E49: =IF(ISERROR(MATCH(D49,'CrediAltoque (SI)'!$H$18:$H$19,0))=FALSE,"C",IF(ISERROR(MATCH(D49,'CrediAltoque (SI)'!$H$20:$H$21,0))=FALSE,"D","")) ->  | F49: =IF(E49="C",0,IF(E49 ="D",ROUND(1/((1+'CrediAltoque (SI)'!$R$14)^A49),9) * 2,ROUND(1/((1+'CrediAltoque (SI)'!$R$14)^A49),9))) -> 0.09556856 | G49: 17.27114409
A50: 47 | B50: 47 | C50: 2027-01-15 | D50: 1 | E50: =IF(ISERROR(MATCH(D50,'CrediAltoque (SI)'!$H$18:$H$19,0))=FALSE,"C",IF(ISERROR(MATCH(D50,'CrediAltoque (SI)'!$H$20:$H$21,0))=FALSE,"D","")) ->  | F50: =IF(E50="C",0,IF(E50 ="D",ROUND(1/((1+'CrediAltoque (SI)'!$R$14)^A50),9) * 2,ROUND(1/((1+'CrediAltoque (SI)'!$R$14)^A50),9))) -> 0.090812991 | G50: 17.36195708
A51: 48 | B51: 48 | C51: 2027-02-15 | D51: 2 | E51: =IF(ISERROR(MATCH(D51,'CrediAltoque (SI)'!$H$18:$H$19,0))=FALSE,"C",IF(ISERROR(MATCH(D51,'CrediAltoque (SI)'!$H$20:$H$21,0))=FALSE,"D","")) ->  | F51: =IF(E51="C",0,IF(E51 ="D",ROUND(1/((1+'CrediAltoque (SI)'!$R$14)^A51),9) * 2,ROUND(1/((1+'CrediAltoque (SI)'!$R$14)^A51),9))) -> 0.086294063 | G51: 17.44825115
A52: 49 | B52: 49 | C52: 2027-03-15 | D52: 3 | E52: =IF(ISERROR(MATCH(D52,'CrediAltoque (SI)'!$H$18:$H$19,0))=FALSE,"C",IF(ISERROR(MATCH(D52,'CrediAltoque (SI)'!$H$20:$H$21,0))=FALSE,"D","")) ->  | F52: =IF(E52="C",0,IF(E52 ="D",ROUND(1/((1+'CrediAltoque (SI)'!$R$14)^A52),9) * 2,ROUND(1/((1+'CrediAltoque (SI)'!$R$14)^A52),9))) -> 0.082 | G52: 17.53025115
A53: 50 | B53: 50 | C53: 2027-04-15 | D53: 4 | E53: =IF(ISERROR(MATCH(D53,'CrediAltoque (SI)'!$H$18:$H$19,0))=FALSE,"C",IF(ISERROR(MATCH(D53,'CrediAltoque (SI)'!$H$20:$H$21,0))=FALSE,"D","")) ->  | F53: =IF(E53="C",0,IF(E53 ="D",ROUND(1/((1+'CrediAltoque (SI)'!$R$14)^A53),9) * 2,ROUND(1/((1+'CrediAltoque (SI)'!$R$14)^A53),9))) -> 0.077919613 | G53: 17.60817076
A54: 51 | B54: 51 | C54: 2027-05-15 | D54: 5 | E54: =IF(ISERROR(MATCH(D54,'CrediAltoque (SI)'!$H$18:$H$19,0))=FALSE,"C",IF(ISERROR(MATCH(D54,'CrediAltoque (SI)'!$H$20:$H$21,0))=FALSE,"D","")) ->  | F54: =IF(E54="C",0,IF(E54 ="D",ROUND(1/((1+'CrediAltoque (SI)'!$R$14)^A54),9) * 2,ROUND(1/((1+'CrediAltoque (SI)'!$R$14)^A54),9))) -> 0.07404227 | G54: 17.68221303
A55: 52 | B55: 52 | C55: 2027-06-15 | D55: 6 | E55: =IF(ISERROR(MATCH(D55,'CrediAltoque (SI)'!$H$18:$H$19,0))=FALSE,"C",IF(ISERROR(MATCH(D55,'CrediAltoque (SI)'!$H$20:$H$21,0))=FALSE,"D","")) ->  | F55: =IF(E55="C",0,IF(E55 ="D",ROUND(1/((1+'CrediAltoque (SI)'!$R$14)^A55),9) * 2,ROUND(1/((1+'CrediAltoque (SI)'!$R$14)^A55),9))) -> 0.070357866 | G55: 17.75257089
A56: 53 | B56: 53 | C56: 2027-07-15 | D56: 7 | E56: =IF(ISERROR(MATCH(D56,'CrediAltoque (SI)'!$H$18:$H$19,0))=FALSE,"C",IF(ISERROR(MATCH(D56,'CrediAltoque (SI)'!$H$20:$H$21,0))=FALSE,"D","")) ->  | F56: =IF(E56="C",0,IF(E56 ="D",ROUND(1/((1+'CrediAltoque (SI)'!$R$14)^A56),9) * 2,ROUND(1/((1+'CrediAltoque (SI)'!$R$14)^A56),9))) -> 0.066856801 | G56: 17.8194277
A57: 54 | B57: 54 | C57: 2027-08-15 | D57: 8 | E57: =IF(ISERROR(MATCH(D57,'CrediAltoque (SI)'!$H$18:$H$19,0))=FALSE,"C",IF(ISERROR(MATCH(D57,'CrediAltoque (SI)'!$H$20:$H$21,0))=FALSE,"D","")) ->  | F57: =IF(E57="C",0,IF(E57 ="D",ROUND(1/((1+'CrediAltoque (SI)'!$R$14)^A57),9) * 2,ROUND(1/((1+'CrediAltoque (SI)'!$R$14)^A57),9))) -> 0.063529952 | G57: 17.88295765
A58: 55 | B58: 55 | C58: 2027-09-15 | D58: 9 | E58: =IF(ISERROR(MATCH(D58,'CrediAltoque (SI)'!$H$18:$H$19,0))=FALSE,"C",IF(ISERROR(MATCH(D58,'CrediAltoque (SI)'!$H$20:$H$21,0))=FALSE,"D","")) ->  | F58: =IF(E58="C",0,IF(E58 ="D",ROUND(1/((1+'CrediAltoque (SI)'!$R$14)^A58),9) * 2,ROUND(1/((1+'CrediAltoque (SI)'!$R$14)^A58),9))) -> 0.06036865 | G58: 17.9433263
A59: 56 | B59: 56 | C59: 2027-10-15 | D59: 10 | E59: =IF(ISERROR(MATCH(D59,'CrediAltoque (SI)'!$H$18:$H$19,0))=FALSE,"C",IF(ISERROR(MATCH(D59,'CrediAltoque (SI)'!$H$20:$H$21,0))=FALSE,"D","")) ->  | F59: =IF(E59="C",0,IF(E59 ="D",ROUND(1/((1+'CrediAltoque (SI)'!$R$14)^A59),9) * 2,ROUND(1/((1+'CrediAltoque (SI)'!$R$14)^A59),9))) -> 0.057364657 | G59: 18.00069095
A60: 57 | B60: 57 | C60: 2027-11-15 | D60: 11 | E60: =IF(ISERROR(MATCH(D60,'CrediAltoque (SI)'!$H$18:$H$19,0))=FALSE,"C",IF(ISERROR(MATCH(D60,'CrediAltoque (SI)'!$H$20:$H$21,0))=FALSE,"D","")) ->  | F60: =IF(E60="C",0,IF(E60 ="D",ROUND(1/((1+'CrediAltoque (SI)'!$R$14)^A60),9) * 2,ROUND(1/((1+'CrediAltoque (SI)'!$R$14)^A60),9))) -> 0.054510145 | G60: 18.0552011
A61: 58 | B61: 58 | C61: 2027-12-15 | D61: 12 | E61: =IF(ISERROR(MATCH(D61,'CrediAltoque (SI)'!$H$18:$H$19,0))=FALSE,"C",IF(ISERROR(MATCH(D61,'CrediAltoque (SI)'!$H$20:$H$21,0))=FALSE,"D","")) ->  | F61: =IF(E61="C",0,IF(E61 ="D",ROUND(1/((1+'CrediAltoque (SI)'!$R$14)^A61),9) * 2,ROUND(1/((1+'CrediAltoque (SI)'!$R$14)^A61),9))) -> 0.051797676 | G61: 18.10699878
A62: 59 | B62: 59 | C62: 2028-01-15 | D62: 1 | E62: =IF(ISERROR(MATCH(D62,'CrediAltoque (SI)'!$H$18:$H$19,0))=FALSE,"C",IF(ISERROR(MATCH(D62,'CrediAltoque (SI)'!$H$20:$H$21,0))=FALSE,"D","")) ->  | F62: =IF(E62="C",0,IF(E62 ="D",ROUND(1/((1+'CrediAltoque (SI)'!$R$14)^A62),9) * 2,ROUND(1/((1+'CrediAltoque (SI)'!$R$14)^A62),9))) -> 0.049220181 | G62: 18.15621896
A63: 60 | B63: 60 | C63: 2028-02-15 | D63: 2 | E63: =IF(ISERROR(MATCH(D63,'CrediAltoque (SI)'!$H$18:$H$19,0))=FALSE,"C",IF(ISERROR(MATCH(D63,'CrediAltoque (SI)'!$H$20:$H$21,0))=FALSE,"D","")) ->  | F63: =IF(E63="C",0,IF(E63 ="D",ROUND(1/((1+'CrediAltoque (SI)'!$R$14)^A63),9) * 2,ROUND(1/((1+'CrediAltoque (SI)'!$R$14)^A63),9))) -> 0.046770945 | G63: 18.2029899
A64: 61 | B64: 61 | C64: 2028-03-15 | D64: 3 | E64: =IF(ISERROR(MATCH(D64,'CrediAltoque (SI)'!$H$18:$H$19,0))=FALSE,"C",IF(ISERROR(MATCH(D64,'CrediAltoque (SI)'!$H$20:$H$21,0))=FALSE,"D","")) ->  | F64: =IF(E64="C",0,IF(E64 ="D",ROUND(1/((1+'CrediAltoque (SI)'!$R$14)^A64),9) * 2,ROUND(1/((1+'CrediAltoque (SI)'!$R$14)^A64),9))) -> 0.044443585 | G64: 18.24743349
A65: 62 | B65: 62 | C65: 2028-04-15 | D65: 4 | E65: =IF(ISERROR(MATCH(D65,'CrediAltoque (SI)'!$H$18:$H$19,0))=FALSE,"C",IF(ISERROR(MATCH(D65,'CrediAltoque (SI)'!$H$20:$H$21,0))=FALSE,"D","")) ->  | F65: =IF(E65="C",0,IF(E65 ="D",ROUND(1/((1+'CrediAltoque (SI)'!$R$14)^A65),9) * 2,ROUND(1/((1+'CrediAltoque (SI)'!$R$14)^A65),9))) -> 0.042232036 | G65: 18.28966552
A66: 63 | B66: 63 | C66: 2028-05-15 | D66: 5 | E66: =IF(ISERROR(MATCH(D66,'CrediAltoque (SI)'!$H$18:$H$19,0))=FALSE,"C",IF(ISERROR(MATCH(D66,'CrediAltoque (SI)'!$H$20:$H$21,0))=FALSE,"D","")) ->  | F66: =IF(E66="C",0,IF(E66 ="D",ROUND(1/((1+'CrediAltoque (SI)'!$R$14)^A66),9) * 2,ROUND(1/((1+'CrediAltoque (SI)'!$R$14)^A66),9))) -> 0.040130535 | G66: 18.32979606
A67: 64 | B67: 64 | C67: 2028-06-15 | D67: 6 | E67: =IF(ISERROR(MATCH(D67,'CrediAltoque (SI)'!$H$18:$H$19,0))=FALSE,"C",IF(ISERROR(MATCH(D67,'CrediAltoque (SI)'!$H$20:$H$21,0))=FALSE,"D","")) ->  | F67: =IF(E67="C",0,IF(E67 ="D",ROUND(1/((1+'CrediAltoque (SI)'!$R$14)^A67),9) * 2,ROUND(1/((1+'CrediAltoque (SI)'!$R$14)^A67),9))) -> 0.038133607 | G67: 18.36792966
A68: 65 | B68: 65 | C68: 2028-07-15 | D68: =MONTH(C68) -> 7 | E68: =IF(ISERROR(MATCH(D68,'CrediAltoque (SI)'!$H$18:$H$19,0))=FALSE,"C",IF(ISERROR(MATCH(D68,'CrediAltoque (SI)'!$H$20:$H$21,0))=FALSE,"D","")) ->  | F68: =IF(E68="C",0,IF(E68 ="D",ROUND(1/((1+'CrediAltoque (SI)'!$R$14)^A68),9) * 2,ROUND(1/((1+'CrediAltoque (SI)'!$R$14)^A68),9))) -> 0.036236048 | G68: 18.40416571
A69: =A68+1 -> 66 | B69: =IF(E69<>"C",IF(ISERROR(1+B68)=TRUE,1,1+B68),IF(ISNUMBER(B68),B68,1)) -> 66 | C69: =DATE(YEAR(C68) + 1/12,MONTH(C68)+1,DAY(C68)) -> 2028-08-15 | D69: 8 | E69: =IF(ISERROR(MATCH(D69,'CrediAltoque (SI)'!$H$18:$H$19,0))=FALSE,"C",IF(ISERROR(MATCH(D69,'CrediAltoque (SI)'!$H$20:$H$21,0))=FALSE,"D","")) ->  | F69: =IF(E69="C",0,IF(E69 ="D",ROUND(1/((1+'CrediAltoque (SI)'!$R$14)^A69),9) * 2,ROUND(1/((1+'CrediAltoque (SI)'!$R$14)^A69),9))) -> 0.034432913 | G69: 18.43859862
A70: 67 | B70: 67 | C70: 2028-09-15 | D70: 9 | E70: =IF(ISERROR(MATCH(D70,'CrediAltoque (SI)'!$H$18:$H$19,0))=FALSE,"C",IF(ISERROR(MATCH(D70,'CrediAltoque (SI)'!$H$20:$H$21,0))=FALSE,"D","")) ->  | F70: =IF(E70="C",0,IF(E70 ="D",ROUND(1/((1+'CrediAltoque (SI)'!$R$14)^A70),9) * 2,ROUND(1/((1+'CrediAltoque (SI)'!$R$14)^A70),9))) -> 0.032719503 | G70: =G69+ROUND(F70,9) -> 18.47131813
A71: 68 | B71: 68 | C71: 2028-10-15 | D71: 10 | E71: =IF(ISERROR(MATCH(D71,'CrediAltoque (SI)'!$H$18:$H$19,0))=FALSE,"C",IF(ISERROR(MATCH(D71,'CrediAltoque (SI)'!$H$20:$H$21,0))=FALSE,"D","")) ->  | F71: =IF(E71="C",0,IF(E71 ="D",ROUND(1/((1+'CrediAltoque (SI)'!$R$14)^A71),9) * 2,ROUND(1/((1+'CrediAltoque (SI)'!$R$14)^A71),9))) -> 0.031091354 | G71: 18.50240948
A72: 69 | B72: 69 | C72: 2028-11-15 | D72: 11 | E72: =IF(ISERROR(MATCH(D72,'CrediAltoque (SI)'!$H$18:$H$19,0))=FALSE,"C",IF(ISERROR(MATCH(D72,'CrediAltoque (SI)'!$H$20:$H$21,0))=FALSE,"D","")) ->  | F72: =IF(E72="C",0,IF(E72 ="D",ROUND(1/((1+'CrediAltoque (SI)'!$R$14)^A72),9) * 2,ROUND(1/((1+'CrediAltoque (SI)'!$R$14)^A72),9))) -> 0.029544223 | G72: 18.5319537
A73: 70 | B73: 70 | C73: 2028-12-15 | D73: 12 | E73: =IF(ISERROR(MATCH(D73,'CrediAltoque (SI)'!$H$18:$H$19,0))=FALSE,"C",IF(ISERROR(MATCH(D73,'CrediAltoque (SI)'!$H$20:$H$21,0))=FALSE,"D","")) ->  | F73: =IF(E73="C",0,IF(E73 ="D",ROUND(1/((1+'CrediAltoque (SI)'!$R$14)^A73),9) * 2,ROUND(1/((1+'CrediAltoque (SI)'!$R$14)^A73),9))) -> 0.028074078 | G73: 18.56002778
A74: 71 | B74: 71 | C74: 2029-01-15 | D74: 1 | E74: =IF(ISERROR(MATCH(D74,'CrediAltoque (SI)'!$H$18:$H$19,0))=FALSE,"C",IF(ISERROR(MATCH(D74,'CrediAltoque (SI)'!$H$20:$H$21,0))=FALSE,"D","")) ->  | F74: =IF(E74="C",0,IF(E74 ="D",ROUND(1/((1+'CrediAltoque (SI)'!$R$14)^A74),9) * 2,ROUND(1/((1+'CrediAltoque (SI)'!$R$14)^A74),9))) -> 0.026677089 | G74: 18.58670487
A75: 72 | B75: 72 | C75: 2029-02-15 | D75: 2 | E75: =IF(ISERROR(MATCH(D75,'CrediAltoque (SI)'!$H$18:$H$19,0))=FALSE,"C",IF(ISERROR(MATCH(D75,'CrediAltoque (SI)'!$H$20:$H$21,0))=FALSE,"D","")) ->  | F75: =IF(E75="C",0,IF(E75 ="D",ROUND(1/((1+'CrediAltoque (SI)'!$R$14)^A75),9) * 2,ROUND(1/((1+'CrediAltoque (SI)'!$R$14)^A75),9))) -> 0.025349615 | G75: 18.61205449
A76: 73 | B76: 73 | C76: 2029-03-15 | D76: 3 | E76: =IF(ISERROR(MATCH(D76,'CrediAltoque (SI)'!$H$18:$H$19,0))=FALSE,"C",IF(ISERROR(MATCH(D76,'CrediAltoque (SI)'!$H$20:$H$21,0))=FALSE,"D","")) ->  | F76: =IF(E76="C",0,IF(E76 ="D",ROUND(1/((1+'CrediAltoque (SI)'!$R$14)^A76),9) * 2,ROUND(1/((1+'CrediAltoque (SI)'!$R$14)^A76),9))) -> 0.024088198 | G76: 18.63614268
A77: 74 | B77: 74 | C77: 2029-04-15 | D77: 4 | E77: =IF(ISERROR(MATCH(D77,'CrediAltoque (SI)'!$H$18:$H$19,0))=FALSE,"C",IF(ISERROR(MATCH(D77,'CrediAltoque (SI)'!$H$20:$H$21,0))=FALSE,"D","")) ->  | F77: =IF(E77="C",0,IF(E77 ="D",ROUND(1/((1+'CrediAltoque (SI)'!$R$14)^A77),9) * 2,ROUND(1/((1+'CrediAltoque (SI)'!$R$14)^A77),9))) -> 0.02288955 | G77: 18.65903223
A78: 75 | B78: 75 | C78: 2029-05-15 | D78: 5 | E78: =IF(ISERROR(MATCH(D78,'CrediAltoque (SI)'!$H$18:$H$19,0))=FALSE,"C",IF(ISERROR(MATCH(D78,'CrediAltoque (SI)'!$H$20:$H$21,0))=FALSE,"D","")) ->  | F78: =IF(E78="C",0,IF(E78 ="D",ROUND(1/((1+'CrediAltoque (SI)'!$R$14)^A78),9) * 2,ROUND(1/((1+'CrediAltoque (SI)'!$R$14)^A78),9))) -> 0.021750547 | G78: 18.68078278
A79: 76 | B79: 76 | C79: 2029-06-15 | D79: 6 | E79: =IF(ISERROR(MATCH(D79,'CrediAltoque (SI)'!$H$18:$H$19,0))=FALSE,"C",IF(ISERROR(MATCH(D79,'CrediAltoque (SI)'!$H$20:$H$21,0))=FALSE,"D","")) ->  | F79: =IF(E79="C",0,IF(E79 ="D",ROUND(1/((1+'CrediAltoque (SI)'!$R$14)^A79),9) * 2,ROUND(1/((1+'CrediAltoque (SI)'!$R$14)^A79),9))) -> 0.020668222 | G79: 18.701451
A80: 77 | B80: 77 | C80: 2029-07-15 | D80: 7 | E80: =IF(ISERROR(MATCH(D80,'CrediAltoque (SI)'!$H$18:$H$19,0))=FALSE,"C",IF(ISERROR(MATCH(D80,'CrediAltoque (SI)'!$H$20:$H$21,0))=FALSE,"D","")) ->  | F80: =IF(E80="C",0,IF(E80 ="D",ROUND(1/((1+'CrediAltoque (SI)'!$R$14)^A80),9) * 2,ROUND(1/((1+'CrediAltoque (SI)'!$R$14)^A80),9))) -> 0.019639754 | G80: 18.72109076
A81: 78 | B81: 78 | C81: 2029-08-15 | D81: 8 | E81: =IF(ISERROR(MATCH(D81,'CrediAltoque (SI)'!$H$18:$H$19,0))=FALSE,"C",IF(ISERROR(MATCH(D81,'CrediAltoque (SI)'!$H$20:$H$21,0))=FALSE,"D","")) ->  | F81: =IF(E81="C",0,IF(E81 ="D",ROUND(1/((1+'CrediAltoque (SI)'!$R$14)^A81),9) * 2,ROUND(1/((1+'CrediAltoque (SI)'!$R$14)^A81),9))) -> 0.018662464 | G81: 18.73975322
A82: 79 | B82: 79 | C82: 2029-09-15 | D82: 9 | E82: =IF(ISERROR(MATCH(D82,'CrediAltoque (SI)'!$H$18:$H$19,0))=FALSE,"C",IF(ISERROR(MATCH(D82,'CrediAltoque (SI)'!$H$20:$H$21,0))=FALSE,"D","")) ->  | F82: =IF(E82="C",0,IF(E82 ="D",ROUND(1/((1+'CrediAltoque (SI)'!$R$14)^A82),9) * 2,ROUND(1/((1+'CrediAltoque (SI)'!$R$14)^A82),9))) -> 0.017733805 | G82: 18.75748703
A83: 80 | B83: 80 | C83: 2029-10-15 | D83: 10 | E83: =IF(ISERROR(MATCH(D83,'CrediAltoque (SI)'!$H$18:$H$19,0))=FALSE,"C",IF(ISERROR(MATCH(D83,'CrediAltoque (SI)'!$H$20:$H$21,0))=FALSE,"D","")) ->  | F83: =IF(E83="C",0,IF(E83 ="D",ROUND(1/((1+'CrediAltoque (SI)'!$R$14)^A83),9) * 2,ROUND(1/((1+'CrediAltoque (SI)'!$R$14)^A83),9))) -> 0.016851356 | G83: 18.77433838
A84: 81 | B84: 81 | C84: 2029-11-15 | D84: 11 | E84: =IF(ISERROR(MATCH(D84,'CrediAltoque (SI)'!$H$18:$H$19,0))=FALSE,"C",IF(ISERROR(MATCH(D84,'CrediAltoque (SI)'!$H$20:$H$21,0))=FALSE,"D","")) ->  | F84: =IF(E84="C",0,IF(E84 ="D",ROUND(1/((1+'CrediAltoque (SI)'!$R$14)^A84),9) * 2,ROUND(1/((1+'CrediAltoque (SI)'!$R$14)^A84),9))) -> 0.016012819 | G84: 18.7903512
A85: 82 | B85: 82 | C85: 2029-12-15 | D85: 12 | E85: =IF(ISERROR(MATCH(D85,'CrediAltoque (SI)'!$H$18:$H$19,0))=FALSE,"C",IF(ISERROR(MATCH(D85,'CrediAltoque (SI)'!$H$20:$H$21,0))=FALSE,"D","")) ->  | F85: =IF(E85="C",0,IF(E85 ="D",ROUND(1/((1+'CrediAltoque (SI)'!$R$14)^A85),9) * 2,ROUND(1/((1+'CrediAltoque (SI)'!$R$14)^A85),9))) -> 0.015216008 | G85: 18.80556721
A86: 83 | B86: 83 | C86: 2030-01-15 | D86: 1 | E86: =IF(ISERROR(MATCH(D86,'CrediAltoque (SI)'!$H$18:$H$19,0))=FALSE,"C",IF(ISERROR(MATCH(D86,'CrediAltoque (SI)'!$H$20:$H$21,0))=FALSE,"D","")) ->  | F86: =IF(E86="C",0,IF(E86 ="D",ROUND(1/((1+'CrediAltoque (SI)'!$R$14)^A86),9) * 2,ROUND(1/((1+'CrediAltoque (SI)'!$R$14)^A86),9))) -> 0.014458847 | G86: 18.82002606
A87: 84 | B87: 84 | C87: 2030-02-15 | D87: 2 | E87: =IF(ISERROR(MATCH(D87,'CrediAltoque (SI)'!$H$18:$H$19,0))=FALSE,"C",IF(ISERROR(MATCH(D87,'CrediAltoque (SI)'!$H$20:$H$21,0))=FALSE,"D","")) ->  | F87: =IF(E87="C",0,IF(E87 ="D",ROUND(1/((1+'CrediAltoque (SI)'!$R$14)^A87),9) * 2,ROUND(1/((1+'CrediAltoque (SI)'!$R$14)^A87),9))) -> 0.013739363 | G87: 18.83376542
A88: 85 | B88: 85 | C88: 2030-03-15 | D88: 3 | E88: =IF(ISERROR(MATCH(D88,'CrediAltoque (SI)'!$H$18:$H$19,0))=FALSE,"C",IF(ISERROR(MATCH(D88,'CrediAltoque (SI)'!$H$20:$H$21,0))=FALSE,"D","")) ->  | F88: =IF(E88="C",0,IF(E88 ="D",ROUND(1/((1+'CrediAltoque (SI)'!$R$14)^A88),9) * 2,ROUND(1/((1+'CrediAltoque (SI)'!$R$14)^A88),9))) -> 0.013055681 | G88: 18.8468211
A89: 86 | B89: 86 | C89: 2030-04-15 | D89: 4 | E89: =IF(ISERROR(MATCH(D89,'CrediAltoque (SI)'!$H$18:$H$19,0))=FALSE,"C",IF(ISERROR(MATCH(D89,'CrediAltoque (SI)'!$H$20:$H$21,0))=FALSE,"D","")) ->  | F89: =IF(E89="C",0,IF(E89 ="D",ROUND(1/((1+'CrediAltoque (SI)'!$R$14)^A89),9) * 2,ROUND(1/((1+'CrediAltoque (SI)'!$R$14)^A89),9))) -> 0.01240602 | G89: 18.85922712
A90: 87 | B90: 87 | C90: 2030-05-15 | D90: 5 | E90: =IF(ISERROR(MATCH(D90,'CrediAltoque (SI)'!$H$18:$H$19,0))=FALSE,"C",IF(ISERROR(MATCH(D90,'CrediAltoque (SI)'!$H$20:$H$21,0))=FALSE,"D","")) ->  | F90: =IF(E90="C",0,IF(E90 ="D",ROUND(1/((1+'CrediAltoque (SI)'!$R$14)^A90),9) * 2,ROUND(1/((1+'CrediAltoque (SI)'!$R$14)^A90),9))) -> 0.011788686 | G90: 18.87101581
A91: 88 | B91: 88 | C91: 2030-06-15 | D91: 6 | E91: =IF(ISERROR(MATCH(D91,'CrediAltoque (SI)'!$H$18:$H$19,0))=FALSE,"C",IF(ISERROR(MATCH(D91,'CrediAltoque (SI)'!$H$20:$H$21,0))=FALSE,"D","")) ->  | F91: =IF(E91="C",0,IF(E91 ="D",ROUND(1/((1+'CrediAltoque (SI)'!$R$14)^A91),9) * 2,ROUND(1/((1+'CrediAltoque (SI)'!$R$14)^A91),9))) -> 0.011202072 | G91: 18.88221788
A92: 89 | B92: 89 | C92: 2030-07-15 | D92: 7 | E92: =IF(ISERROR(MATCH(D92,'CrediAltoque (SI)'!$H$18:$H$19,0))=FALSE,"C",IF(ISERROR(MATCH(D92,'CrediAltoque (SI)'!$H$20:$H$21,0))=FALSE,"D","")) ->  | F92: =IF(E92="C",0,IF(E92 ="D",ROUND(1/((1+'CrediAltoque (SI)'!$R$14)^A92),9) * 2,ROUND(1/((1+'CrediAltoque (SI)'!$R$14)^A92),9))) -> 0.010644647 | G92: 18.89286253
A93: 90 | B93: 90 | C93: 2030-08-15 | D93: 8 | E93: =IF(ISERROR(MATCH(D93,'CrediAltoque (SI)'!$H$18:$H$19,0))=FALSE,"C",IF(ISERROR(MATCH(D93,'CrediAltoque (SI)'!$H$20:$H$21,0))=FALSE,"D","")) ->  | F93: =IF(E93="C",0,IF(E93 ="D",ROUND(1/((1+'CrediAltoque (SI)'!$R$14)^A93),9) * 2,ROUND(1/((1+'CrediAltoque (SI)'!$R$14)^A93),9))) -> 0.010114961 | G93: 18.90297749
A94: 91 | B94: 91 | C94: 2030-09-15 | D94: 9 | E94: =IF(ISERROR(MATCH(D94,'CrediAltoque (SI)'!$H$18:$H$19,0))=FALSE,"C",IF(ISERROR(MATCH(D94,'CrediAltoque (SI)'!$H$20:$H$21,0))=FALSE,"D","")) ->  | F94: =IF(E94="C",0,IF(E94 ="D",ROUND(1/((1+'CrediAltoque (SI)'!$R$14)^A94),9) * 2,ROUND(1/((1+'CrediAltoque (SI)'!$R$14)^A94),9))) -> 0.009611632 | G94: 18.91258912
A95: 92 | B95: 92 | C95: 2030-10-15 | D95: 10 | E95: =IF(ISERROR(MATCH(D95,'CrediAltoque (SI)'!$H$18:$H$19,0))=FALSE,"C",IF(ISERROR(MATCH(D95,'CrediAltoque (SI)'!$H$20:$H$21,0))=FALSE,"D","")) ->  | F95: =IF(E95="C",0,IF(E95 ="D",ROUND(1/((1+'CrediAltoque (SI)'!$R$14)^A95),9) * 2,ROUND(1/((1+'CrediAltoque (SI)'!$R$14)^A95),9))) -> 0.00913335 | G95: 18.92172247
A96: 93 | B96: 93 | C96: 2030-11-15 | D96: 11 | E96: =IF(ISERROR(MATCH(D96,'CrediAltoque (SI)'!$H$18:$H$19,0))=FALSE,"C",IF(ISERROR(MATCH(D96,'CrediAltoque (SI)'!$H$20:$H$21,0))=FALSE,"D","")) ->  | F96: =IF(E96="C",0,IF(E96 ="D",ROUND(1/((1+'CrediAltoque (SI)'!$R$14)^A96),9) * 2,ROUND(1/((1+'CrediAltoque (SI)'!$R$14)^A96),9))) -> 0.008678867 | G96: 18.93040134
A97: 94 | B97: 94 | C97: 2030-12-15 | D97: 12 | E97: =IF(ISERROR(MATCH(D97,'CrediAltoque (SI)'!$H$18:$H$19,0))=FALSE,"C",IF(ISERROR(MATCH(D97,'CrediAltoque (SI)'!$H$20:$H$21,0))=FALSE,"D","")) ->  | F97: =IF(E97="C",0,IF(E97 ="D",ROUND(1/((1+'CrediAltoque (SI)'!$R$14)^A97),9) * 2,ROUND(1/((1+'CrediAltoque (SI)'!$R$14)^A97),9))) -> 0.008246999 | G97: 18.93864833
A98: 95 | B98: 95 | C98: 2031-01-15 | D98: 1 | E98: =IF(ISERROR(MATCH(D98,'CrediAltoque (SI)'!$H$18:$H$19,0))=FALSE,"C",IF(ISERROR(MATCH(D98,'CrediAltoque (SI)'!$H$20:$H$21,0))=FALSE,"D","")) ->  | F98: =IF(E98="C",0,IF(E98 ="D",ROUND(1/((1+'CrediAltoque (SI)'!$R$14)^A98),9) * 2,ROUND(1/((1+'CrediAltoque (SI)'!$R$14)^A98),9))) -> 0.007836622 | G98: 18.94648496
A99: 96 | B99: 96 | C99: 2031-02-15 | D99: 2 | E99: =IF(ISERROR(MATCH(D99,'CrediAltoque (SI)'!$H$18:$H$19,0))=FALSE,"C",IF(ISERROR(MATCH(D99,'CrediAltoque (SI)'!$H$20:$H$21,0))=FALSE,"D","")) ->  | F99: =IF(E99="C",0,IF(E99 ="D",ROUND(1/((1+'CrediAltoque (SI)'!$R$14)^A99),9) * 2,ROUND(1/((1+'CrediAltoque (SI)'!$R$14)^A99),9))) -> 0.007446665 | G99: 18.95393162
A100: 97 | B100: 97 | C100: 2031-03-15 | D100: 3 | E100: =IF(ISERROR(MATCH(D100,'CrediAltoque (SI)'!$H$18:$H$19,0))=FALSE,"C",IF(ISERROR(MATCH(D100,'CrediAltoque (SI)'!$H$20:$H$21,0))=FALSE,"D","")) ->  | F100: =IF(E100="C",0,IF(E100 ="D",ROUND(1/((1+'CrediAltoque (SI)'!$R$14)^A100),9) * 2,ROUND(1/((1+'CrediAltoque (SI)'!$R$14)^A100),9))) -> 0.007076113 | G100: 18.96100773
A101: 98 | B101: 98 | C101: 2031-04-15 | D101: 4 | E101: =IF(ISERROR(MATCH(D101,'CrediAltoque (SI)'!$H$18:$H$19,0))=FALSE,"C",IF(ISERROR(MATCH(D101,'CrediAltoque (SI)'!$H$20:$H$21,0))=FALSE,"D","")) ->  | F101: =IF(E101="C",0,IF(E101 ="D",ROUND(1/((1+'CrediAltoque (SI)'!$R$14)^A101),9) * 2,ROUND(1/((1+'CrediAltoque (SI)'!$R$14)^A101),9))) -> 0.006724 | G101: 18.96773173
A102: 99 | B102: 99 | C102: 2031-05-15 | D102: 5 | E102: =IF(ISERROR(MATCH(D102,'CrediAltoque (SI)'!$H$18:$H$19,0))=FALSE,"C",IF(ISERROR(MATCH(D102,'CrediAltoque (SI)'!$H$20:$H$21,0))=FALSE,"D","")) ->  | F102: =IF(E102="C",0,IF(E102 ="D",ROUND(1/((1+'CrediAltoque (SI)'!$R$14)^A102),9) * 2,ROUND(1/((1+'CrediAltoque (SI)'!$R$14)^A102),9))) -> 0.006389408 | G102: 18.97412114
A103: 100 | B103: 100 | C103: 2031-06-15 | D103: 6 | E103: =IF(ISERROR(MATCH(D103,'CrediAltoque (SI)'!$H$18:$H$19,0))=FALSE,"C",IF(ISERROR(MATCH(D103,'CrediAltoque (SI)'!$H$20:$H$21,0))=FALSE,"D","")) ->  | F103: =IF(E103="C",0,IF(E103 ="D",ROUND(1/((1+'CrediAltoque (SI)'!$R$14)^A103),9) * 2,ROUND(1/((1+'CrediAltoque (SI)'!$R$14)^A103),9))) -> 0.006071466 | G103: 18.98019261
A104: 101 | B104: 101 | C104: 2031-07-15 | D104: 7 | E104: =IF(ISERROR(MATCH(D104,'CrediAltoque (SI)'!$H$18:$H$19,0))=FALSE,"C",IF(ISERROR(MATCH(D104,'CrediAltoque (SI)'!$H$20:$H$21,0))=FALSE,"D","")) ->  | F104: =IF(E104="C",0,IF(E104 ="D",ROUND(1/((1+'CrediAltoque (SI)'!$R$14)^A104),9) * 2,ROUND(1/((1+'CrediAltoque (SI)'!$R$14)^A104),9))) -> 0.005769345 | G104: 18.98596195
A105: 102 | B105: 102 | C105: 2031-08-15 | D105: 8 | E105: =IF(ISERROR(MATCH(D105,'CrediAltoque (SI)'!$H$18:$H$19,0))=FALSE,"C",IF(ISERROR(MATCH(D105,'CrediAltoque (SI)'!$H$20:$H$21,0))=FALSE,"D","")) ->  | F105: =IF(E105="C",0,IF(E105 ="D",ROUND(1/((1+'CrediAltoque (SI)'!$R$14)^A105),9) * 2,ROUND(1/((1+'CrediAltoque (SI)'!$R$14)^A105),9))) -> 0.005482258 | G105: 18.99144421
A106: 103 | B106: 103 | C106: 2031-09-15 | D106: 9 | E106: =IF(ISERROR(MATCH(D106,'CrediAltoque (SI)'!$H$18:$H$19,0))=FALSE,"C",IF(ISERROR(MATCH(D106,'CrediAltoque (SI)'!$H$20:$H$21,0))=FALSE,"D","")) ->  | F106: =IF(E106="C",0,IF(E106 ="D",ROUND(1/((1+'CrediAltoque (SI)'!$R$14)^A106),9) * 2,ROUND(1/((1+'CrediAltoque (SI)'!$R$14)^A106),9))) -> 0.005209456 | G106: 18.99665367
A107: 104 | B107: 104 | C107: 2031-10-15 | D107: 10 | E107: =IF(ISERROR(MATCH(D107,'CrediAltoque (SI)'!$H$18:$H$19,0))=FALSE,"C",IF(ISERROR(MATCH(D107,'CrediAltoque (SI)'!$H$20:$H$21,0))=FALSE,"D","")) ->  | F107: =IF(E107="C",0,IF(E107 ="D",ROUND(1/((1+'CrediAltoque (SI)'!$R$14)^A107),9) * 2,ROUND(1/((1+'CrediAltoque (SI)'!$R$14)^A107),9))) -> 0.004950229 | G107: 19.0016039
A108: 105 | B108: 105 | C108: 2031-11-15 | D108: 11 | E108: =IF(ISERROR(MATCH(D108,'CrediAltoque (SI)'!$H$18:$H$19,0))=FALSE,"C",IF(ISERROR(MATCH(D108,'CrediAltoque (SI)'!$H$20:$H$21,0))=FALSE,"D","")) ->  | F108: =IF(E108="C",0,IF(E108 ="D",ROUND(1/((1+'CrediAltoque (SI)'!$R$14)^A108),9) * 2,ROUND(1/((1+'CrediAltoque (SI)'!$R$14)^A108),9))) -> 0.004703902 | G108: 19.0063078
A109: 106 | B109: 106 | C109: 2031-12-15 | D109: 12 | E109: =IF(ISERROR(MATCH(D109,'CrediAltoque (SI)'!$H$18:$H$19,0))=FALSE,"C",IF(ISERROR(MATCH(D109,'CrediAltoque (SI)'!$H$20:$H$21,0))=FALSE,"D","")) ->  | F109: =IF(E109="C",0,IF(E109 ="D",ROUND(1/((1+'CrediAltoque (SI)'!$R$14)^A109),9) * 2,ROUND(1/((1+'CrediAltoque (SI)'!$R$14)^A109),9))) -> 0.004469832 | G109: 19.01077763
A110: 107 | B110: 107 | C110: 2032-01-15 | D110: 1 | E110: =IF(ISERROR(MATCH(D110,'CrediAltoque (SI)'!$H$18:$H$19,0))=FALSE,"C",IF(ISERROR(MATCH(D110,'CrediAltoque (SI)'!$H$20:$H$21,0))=FALSE,"D","")) ->  | F110: =IF(E110="C",0,IF(E110 ="D",ROUND(1/((1+'CrediAltoque (SI)'!$R$14)^A110),9) * 2,ROUND(1/((1+'CrediAltoque (SI)'!$R$14)^A110),9))) -> 0.004247409 | G110: 19.01502504
A111: 108 | B111: 108 | C111: 2032-02-15 | D111: 2 | E111: =IF(ISERROR(MATCH(D111,'CrediAltoque (SI)'!$H$18:$H$19,0))=FALSE,"C",IF(ISERROR(MATCH(D111,'CrediAltoque (SI)'!$H$20:$H$21,0))=FALSE,"D","")) ->  | F111: =IF(E111="C",0,IF(E111 ="D",ROUND(1/((1+'CrediAltoque (SI)'!$R$14)^A111),9) * 2,ROUND(1/((1+'CrediAltoque (SI)'!$R$14)^A111),9))) -> 0.004036055 | G111: 19.01906109
A112: 109 | B112: 109 | C112: 2032-03-15 | D112: 3 | E112: =IF(ISERROR(MATCH(D112,'CrediAltoque (SI)'!$H$18:$H$19,0))=FALSE,"C",IF(ISERROR(MATCH(D112,'CrediAltoque (SI)'!$H$20:$H$21,0))=FALSE,"D","")) ->  | F112: =IF(E112="C",0,IF(E112 ="D",ROUND(1/((1+'CrediAltoque (SI)'!$R$14)^A112),9) * 2,ROUND(1/((1+'CrediAltoque (SI)'!$R$14)^A112),9))) -> 0.003835217 | G112: 19.02289631
A113: 110 | B113: 110 | C113: 2032-04-15 | D113: 4 | E113: =IF(ISERROR(MATCH(D113,'CrediAltoque (SI)'!$H$18:$H$19,0))=FALSE,"C",IF(ISERROR(MATCH(D113,'CrediAltoque (SI)'!$H$20:$H$21,0))=FALSE,"D","")) ->  | F113: =IF(E113="C",0,IF(E113 ="D",ROUND(1/((1+'CrediAltoque (SI)'!$R$14)^A113),9) * 2,ROUND(1/((1+'CrediAltoque (SI)'!$R$14)^A113),9))) -> 0.003644374 | G113: 19.02654069
A114: 111 | B114: 111 | C114: 2032-05-15 | D114: 5 | E114: =IF(ISERROR(MATCH(D114,'CrediAltoque (SI)'!$H$18:$H$19,0))=FALSE,"C",IF(ISERROR(MATCH(D114,'CrediAltoque (SI)'!$H$20:$H$21,0))=FALSE,"D","")) ->  | F114: =IF(E114="C",0,IF(E114 ="D",ROUND(1/((1+'CrediAltoque (SI)'!$R$14)^A114),9) * 2,ROUND(1/((1+'CrediAltoque (SI)'!$R$14)^A114),9))) -> 0.003463027 | G114: 19.03000371
A115: 112 | B115: 112 | C115: 2032-06-15 | D115: 6 | E115: =IF(ISERROR(MATCH(D115,'CrediAltoque (SI)'!$H$18:$H$19,0))=FALSE,"C",IF(ISERROR(MATCH(D115,'CrediAltoque (SI)'!$H$20:$H$21,0))=FALSE,"D","")) ->  | F115: =IF(E115="C",0,IF(E115 ="D",ROUND(1/((1+'CrediAltoque (SI)'!$R$14)^A115),9) * 2,ROUND(1/((1+'CrediAltoque (SI)'!$R$14)^A115),9))) -> 0.003290704 | G115: 19.03329442
A116: 113 | B116: 113 | C116: 2032-07-15 | D116: 7 | E116: =IF(ISERROR(MATCH(D116,'CrediAltoque (SI)'!$H$18:$H$19,0))=FALSE,"C",IF(ISERROR(MATCH(D116,'CrediAltoque (SI)'!$H$20:$H$21,0))=FALSE,"D","")) ->  | F116: =IF(E116="C",0,IF(E116 ="D",ROUND(1/((1+'CrediAltoque (SI)'!$R$14)^A116),9) * 2,ROUND(1/((1+'CrediAltoque (SI)'!$R$14)^A116),9))) -> 0.003126956 | G116: 19.03642137
A117: 114 | B117: 114 | C117: 2032-08-15 | D117: 8 | E117: =IF(ISERROR(MATCH(D117,'CrediAltoque (SI)'!$H$18:$H$19,0))=FALSE,"C",IF(ISERROR(MATCH(D117,'CrediAltoque (SI)'!$H$20:$H$21,0))=FALSE,"D","")) ->  | F117: =IF(E117="C",0,IF(E117 ="D",ROUND(1/((1+'CrediAltoque (SI)'!$R$14)^A117),9) * 2,ROUND(1/((1+'CrediAltoque (SI)'!$R$14)^A117),9))) -> 0.002971356 | G117: 19.03939273
A118: 115 | B118: 115 | C118: 2032-09-15 | D118: 9 | E118: =IF(ISERROR(MATCH(D118,'CrediAltoque (SI)'!$H$18:$H$19,0))=FALSE,"C",IF(ISERROR(MATCH(D118,'CrediAltoque (SI)'!$H$20:$H$21,0))=FALSE,"D","")) ->  | F118: =IF(E118="C",0,IF(E118 ="D",ROUND(1/((1+'CrediAltoque (SI)'!$R$14)^A118),9) * 2,ROUND(1/((1+'CrediAltoque (SI)'!$R$14)^A118),9))) -> 0.002823499 | G118: 19.04221623
A119: 116 | B119: 116 | C119: 2032-10-15 | D119: 10 | E119: =IF(ISERROR(MATCH(D119,'CrediAltoque (SI)'!$H$18:$H$19,0))=FALSE,"C",IF(ISERROR(MATCH(D119,'CrediAltoque (SI)'!$H$20:$H$21,0))=FALSE,"D","")) ->  | F119: =IF(E119="C",0,IF(E119 ="D",ROUND(1/((1+'CrediAltoque (SI)'!$R$14)^A119),9) * 2,ROUND(1/((1+'CrediAltoque (SI)'!$R$14)^A119),9))) -> 0.002682999 | G119: 19.04489923
A120: 117 | B120: 117 | C120: 2032-11-15 | D120: 11 | E120: =IF(ISERROR(MATCH(D120,'CrediAltoque (SI)'!$H$18:$H$19,0))=FALSE,"C",IF(ISERROR(MATCH(D120,'CrediAltoque (SI)'!$H$20:$H$21,0))=FALSE,"D","")) ->  | F120: =IF(E120="C",0,IF(E120 ="D",ROUND(1/((1+'CrediAltoque (SI)'!$R$14)^A120),9) * 2,ROUND(1/((1+'CrediAltoque (SI)'!$R$14)^A120),9))) -> 0.002549491 | G120: 19.04744872
A121: 118 | B121: 118 | C121: 2032-12-15 | D121: 12 | E121: =IF(ISERROR(MATCH(D121,'CrediAltoque (SI)'!$H$18:$H$19,0))=FALSE,"C",IF(ISERROR(MATCH(D121,'CrediAltoque (SI)'!$H$20:$H$21,0))=FALSE,"D","")) ->  | F121: =IF(E121="C",0,IF(E121 ="D",ROUND(1/((1+'CrediAltoque (SI)'!$R$14)^A121),9) * 2,ROUND(1/((1+'CrediAltoque (SI)'!$R$14)^A121),9))) -> 0.002422626 | G121: 19.04987134
A122: 119 | B122: 119 | C122: 2033-01-15 | D122: 1 | E122: =IF(ISERROR(MATCH(D122,'CrediAltoque (SI)'!$H$18:$H$19,0))=FALSE,"C",IF(ISERROR(MATCH(D122,'CrediAltoque (SI)'!$H$20:$H$21,0))=FALSE,"D","")) ->  | F122: =IF(E122="C",0,IF(E122 ="D",ROUND(1/((1+'CrediAltoque (SI)'!$R$14)^A122),9) * 2,ROUND(1/((1+'CrediAltoque (SI)'!$R$14)^A122),9))) -> 0.002302074 | G122: 19.05217342
A123: 120 | B123: 120 | C123: 2033-02-15 | D123: 2 | E123: =IF(ISERROR(MATCH(D123,'CrediAltoque (SI)'!$H$18:$H$19,0))=FALSE,"C",IF(ISERROR(MATCH(D123,'CrediAltoque (SI)'!$H$20:$H$21,0))=FALSE,"D","")) ->  | F123: =IF(E123="C",0,IF(E123 ="D",ROUND(1/((1+'CrediAltoque (SI)'!$R$14)^A123),9) * 2,ROUND(1/((1+'CrediAltoque (SI)'!$R$14)^A123),9))) -> 0.002187521 | G123: 19.05436094
A124: 121 | B124: 121 | C124: 2033-03-15 | D124: 3 | E124: =IF(ISERROR(MATCH(D124,'CrediAltoque (SI)'!$H$18:$H$19,0))=FALSE,"C",IF(ISERROR(MATCH(D124,'CrediAltoque (SI)'!$H$20:$H$21,0))=FALSE,"D","")) ->  | F124: =IF(E124="C",0,IF(E124 ="D",ROUND(1/((1+'CrediAltoque (SI)'!$R$14)^A124),9) * 2,ROUND(1/((1+'CrediAltoque (SI)'!$R$14)^A124),9))) -> 0.002078668 | G124: 19.05643961
A125: 122 | B125: 122 | C125: 2033-04-15 | D125: 4 | E125: =IF(ISERROR(MATCH(D125,'CrediAltoque (SI)'!$H$18:$H$19,0))=FALSE,"C",IF(ISERROR(MATCH(D125,'CrediAltoque (SI)'!$H$20:$H$21,0))=FALSE,"D","")) ->  | F125: =IF(E125="C",0,IF(E125 ="D",ROUND(1/((1+'CrediAltoque (SI)'!$R$14)^A125),9) * 2,ROUND(1/((1+'CrediAltoque (SI)'!$R$14)^A125),9))) -> 0.001975232 | G125: 19.05841484
A126: 123 | B126: 123 | C126: 2033-05-15 | D126: 5 | E126: =IF(ISERROR(MATCH(D126,'CrediAltoque (SI)'!$H$18:$H$19,0))=FALSE,"C",IF(ISERROR(MATCH(D126,'CrediAltoque (SI)'!$H$20:$H$21,0))=FALSE,"D","")) ->  | F126: =IF(E126="C",0,IF(E126 ="D",ROUND(1/((1+'CrediAltoque (SI)'!$R$14)^A126),9) * 2,ROUND(1/((1+'CrediAltoque (SI)'!$R$14)^A126),9))) -> 0.001876943 | G126: 19.06029178
A127: 124 | B127: 124 | C127: 2033-06-15 | D127: 6 | E127: =IF(ISERROR(MATCH(D127,'CrediAltoque (SI)'!$H$18:$H$19,0))=FALSE,"C",IF(ISERROR(MATCH(D127,'CrediAltoque (SI)'!$H$20:$H$21,0))=FALSE,"D","")) ->  | F127: =IF(E127="C",0,IF(E127 ="D",ROUND(1/((1+'CrediAltoque (SI)'!$R$14)^A127),9) * 2,ROUND(1/((1+'CrediAltoque (SI)'!$R$14)^A127),9))) -> 0.001783545 | G127: 19.06207533
A128: 125 | B128: 125 | C128: 2033-07-15 | D128: 7 | E128: =IF(ISERROR(MATCH(D128,'CrediAltoque (SI)'!$H$18:$H$19,0))=FALSE,"C",IF(ISERROR(MATCH(D128,'CrediAltoque (SI)'!$H$20:$H$21,0))=FALSE,"D","")) ->  | F128: =IF(E128="C",0,IF(E128 ="D",ROUND(1/((1+'CrediAltoque (SI)'!$R$14)^A128),9) * 2,ROUND(1/((1+'CrediAltoque (SI)'!$R$14)^A128),9))) -> 0.001694794 | G128: 19.06377012
A129: 126 | B129: 126 | C129: 2033-08-15 | D129: 8 | E129: =IF(ISERROR(MATCH(D129,'CrediAltoque (SI)'!$H$18:$H$19,0))=FALSE,"C",IF(ISERROR(MATCH(D129,'CrediAltoque (SI)'!$H$20:$H$21,0))=FALSE,"D","")) ->  | F129: =IF(E129="C",0,IF(E129 ="D",ROUND(1/((1+'CrediAltoque (SI)'!$R$14)^A129),9) * 2,ROUND(1/((1+'CrediAltoque (SI)'!$R$14)^A129),9))) -> 0.00161046 | G129: 19.06538058
A130: 127 | B130: 127 | C130: 2033-09-15 | D130: 9 | E130: =IF(ISERROR(MATCH(D130,'CrediAltoque (SI)'!$H$18:$H$19,0))=FALSE,"C",IF(ISERROR(MATCH(D130,'CrediAltoque (SI)'!$H$20:$H$21,0))=FALSE,"D","")) ->  | F130: =IF(E130="C",0,IF(E130 ="D",ROUND(1/((1+'CrediAltoque (SI)'!$R$14)^A130),9) * 2,ROUND(1/((1+'CrediAltoque (SI)'!$R$14)^A130),9))) -> 0.001530322 | G130: 19.0669109
A131: 128 | B131: 128 | C131: 2033-10-15 | D131: 10 | E131: =IF(ISERROR(MATCH(D131,'CrediAltoque (SI)'!$H$18:$H$19,0))=FALSE,"C",IF(ISERROR(MATCH(D131,'CrediAltoque (SI)'!$H$20:$H$21,0))=FALSE,"D","")) ->  | F131: =IF(E131="C",0,IF(E131 ="D",ROUND(1/((1+'CrediAltoque (SI)'!$R$14)^A131),9) * 2,ROUND(1/((1+'CrediAltoque (SI)'!$R$14)^A131),9))) -> 0.001454172 | G131: 19.06836507
A132: 129 | B132: 129 | C132: 2033-11-15 | D132: =MONTH(C132) -> 11 | E132: =IF(ISERROR(MATCH(D132,'CrediAltoque (SI)'!$H$18:$H$19,0))=FALSE,"C",IF(ISERROR(MATCH(D132,'CrediAltoque (SI)'!$H$20:$H$21,0))=FALSE,"D","")) ->  | F132: =IF(E132="C",0,IF(E132 ="D",ROUND(1/((1+'CrediAltoque (SI)'!$R$14)^A132),9) * 2,ROUND(1/((1+'CrediAltoque (SI)'!$R$14)^A132),9))) -> 0.001381811 | G132: 19.06974689
A133: =A132+1 -> 130 | B133: =IF(E133<>"C",IF(ISERROR(1+B132)=TRUE,1,1+B132),IF(ISNUMBER(B132),B132,1)) -> 130 | C133: =DATE(YEAR(C132) + 1/12,MONTH(C132)+1,DAY(C132)) -> 2033-12-15 | D133: 12 | E133: =IF(ISERROR(MATCH(D133,'CrediAltoque (SI)'!$H$18:$H$19,0))=FALSE,"C",IF(ISERROR(MATCH(D133,'CrediAltoque (SI)'!$H$20:$H$21,0))=FALSE,"D","")) ->  | F133: =IF(E133="C",0,IF(E133 ="D",ROUND(1/((1+'CrediAltoque (SI)'!$R$14)^A133),9) * 2,ROUND(1/((1+'CrediAltoque (SI)'!$R$14)^A133),9))) -> 0.001313051 | G133: 19.07105994
A134: 131 | B134: 131 | C134: 2034-01-15 | D134: 1 | E134: =IF(ISERROR(MATCH(D134,'CrediAltoque (SI)'!$H$18:$H$19,0))=FALSE,"C",IF(ISERROR(MATCH(D134,'CrediAltoque (SI)'!$H$20:$H$21,0))=FALSE,"D","")) ->  | F134: =IF(E134="C",0,IF(E134 ="D",ROUND(1/((1+'CrediAltoque (SI)'!$R$14)^A134),9) * 2,ROUND(1/((1+'CrediAltoque (SI)'!$R$14)^A134),9))) -> 0.001247713 | G134: =G133+ROUND(F134,9) -> 19.07230765
A135: 132 | B135: 132 | C135: 2034-02-15 | D135: 2 | E135: =IF(ISERROR(MATCH(D135,'CrediAltoque (SI)'!$H$18:$H$19,0))=FALSE,"C",IF(ISERROR(MATCH(D135,'CrediAltoque (SI)'!$H$20:$H$21,0))=FALSE,"D","")) ->  | F135: =IF(E135="C",0,IF(E135 ="D",ROUND(1/((1+'CrediAltoque (SI)'!$R$14)^A135),9) * 2,ROUND(1/((1+'CrediAltoque (SI)'!$R$14)^A135),9))) -> 0.001185625 | G135: 19.07349327
A136: 133 | B136: 133 | C136: 2034-03-15 | D136: 3 | E136: =IF(ISERROR(MATCH(D136,'CrediAltoque (SI)'!$H$18:$H$19,0))=FALSE,"C",IF(ISERROR(MATCH(D136,'CrediAltoque (SI)'!$H$20:$H$21,0))=FALSE,"D","")) ->  | F136: =IF(E136="C",0,IF(E136 ="D",ROUND(1/((1+'CrediAltoque (SI)'!$R$14)^A136),9) * 2,ROUND(1/((1+'CrediAltoque (SI)'!$R$14)^A136),9))) -> 0.001126628 | G136: 19.0746199
A137: 134 | B137: 134 | C137: 2034-04-15 | D137: 4 | E137: =IF(ISERROR(MATCH(D137,'CrediAltoque (SI)'!$H$18:$H$19,0))=FALSE,"C",IF(ISERROR(MATCH(D137,'CrediAltoque (SI)'!$H$20:$H$21,0))=FALSE,"D","")) ->  | F137: =IF(E137="C",0,IF(E137 ="D",ROUND(1/((1+'CrediAltoque (SI)'!$R$14)^A137),9) * 2,ROUND(1/((1+'CrediAltoque (SI)'!$R$14)^A137),9))) -> 0.001070566 | G137: 19.07569047
A138: 135 | B138: 135 | C138: 2034-05-15 | D138: 5 | E138: =IF(ISERROR(MATCH(D138,'CrediAltoque (SI)'!$H$18:$H$19,0))=FALSE,"C",IF(ISERROR(MATCH(D138,'CrediAltoque (SI)'!$H$20:$H$21,0))=FALSE,"D","")) ->  | F138: =IF(E138="C",0,IF(E138 ="D",ROUND(1/((1+'CrediAltoque (SI)'!$R$14)^A138),9) * 2,ROUND(1/((1+'CrediAltoque (SI)'!$R$14)^A138),9))) -> 0.001017294 | G138: 19.07670776
A139: 136 | B139: 136 | C139: 2034-06-15 | D139: 6 | E139: =IF(ISERROR(MATCH(D139,'CrediAltoque (SI)'!$H$18:$H$19,0))=FALSE,"C",IF(ISERROR(MATCH(D139,'CrediAltoque (SI)'!$H$20:$H$21,0))=FALSE,"D","")) ->  | F139: =IF(E139="C",0,IF(E139 ="D",ROUND(1/((1+'CrediAltoque (SI)'!$R$14)^A139),9) * 2,ROUND(1/((1+'CrediAltoque (SI)'!$R$14)^A139),9))) -> 0.000966672 | G139: 19.07767443
A140: 137 | B140: 137 | C140: 2034-07-15 | D140: 7 | E140: =IF(ISERROR(MATCH(D140,'CrediAltoque (SI)'!$H$18:$H$19,0))=FALSE,"C",IF(ISERROR(MATCH(D140,'CrediAltoque (SI)'!$H$20:$H$21,0))=FALSE,"D","")) ->  | F140: =IF(E140="C",0,IF(E140 ="D",ROUND(1/((1+'CrediAltoque (SI)'!$R$14)^A140),9) * 2,ROUND(1/((1+'CrediAltoque (SI)'!$R$14)^A140),9))) -> 0.00091857 | G140: 19.078593
A141: 138 | B141: 138 | C141: 2034-08-15 | D141: 8 | E141: =IF(ISERROR(MATCH(D141,'CrediAltoque (SI)'!$H$18:$H$19,0))=FALSE,"C",IF(ISERROR(MATCH(D141,'CrediAltoque (SI)'!$H$20:$H$21,0))=FALSE,"D","")) ->  | F141: =IF(E141="C",0,IF(E141 ="D",ROUND(1/((1+'CrediAltoque (SI)'!$R$14)^A141),9) * 2,ROUND(1/((1+'CrediAltoque (SI)'!$R$14)^A141),9))) -> 0.000872861 | G141: 19.07946587
A142: 139 | B142: 139 | C142: 2034-09-15 | D142: 9 | E142: =IF(ISERROR(MATCH(D142,'CrediAltoque (SI)'!$H$18:$H$19,0))=FALSE,"C",IF(ISERROR(MATCH(D142,'CrediAltoque (SI)'!$H$20:$H$21,0))=FALSE,"D","")) ->  | F142: =IF(E142="C",0,IF(E142 ="D",ROUND(1/((1+'CrediAltoque (SI)'!$R$14)^A142),9) * 2,ROUND(1/((1+'CrediAltoque (SI)'!$R$14)^A142),9))) -> 0.000829427 | G142: 19.08029529
A143: 140 | B143: 140 | C143: 2034-10-15 | D143: 10 | E143: =IF(ISERROR(MATCH(D143,'CrediAltoque (SI)'!$H$18:$H$19,0))=FALSE,"C",IF(ISERROR(MATCH(D143,'CrediAltoque (SI)'!$H$20:$H$21,0))=FALSE,"D","")) ->  | F143: =IF(E143="C",0,IF(E143 ="D",ROUND(1/((1+'CrediAltoque (SI)'!$R$14)^A143),9) * 2,ROUND(1/((1+'CrediAltoque (SI)'!$R$14)^A143),9))) -> 0.000788154 | G143: 19.08108345
A144: 141 | B144: 141 | C144: 2034-11-15 | D144: 11 | E144: =IF(ISERROR(MATCH(D144,'CrediAltoque (SI)'!$H$18:$H$19,0))=FALSE,"C",IF(ISERROR(MATCH(D144,'CrediAltoque (SI)'!$H$20:$H$21,0))=FALSE,"D","")) ->  | F144: =IF(E144="C",0,IF(E144 ="D",ROUND(1/((1+'CrediAltoque (SI)'!$R$14)^A144),9) * 2,ROUND(1/((1+'CrediAltoque (SI)'!$R$14)^A144),9))) -> 0.000748935 | G144: 19.08183238
A145: 142 | B145: 142 | C145: 2034-12-15 | D145: 12 | E145: =IF(ISERROR(MATCH(D145,'CrediAltoque (SI)'!$H$18:$H$19,0))=FALSE,"C",IF(ISERROR(MATCH(D145,'CrediAltoque (SI)'!$H$20:$H$21,0))=FALSE,"D","")) ->  | F145: =IF(E145="C",0,IF(E145 ="D",ROUND(1/((1+'CrediAltoque (SI)'!$R$14)^A145),9) * 2,ROUND(1/((1+'CrediAltoque (SI)'!$R$14)^A145),9))) -> 0.000711667 | G145: 19.08254405
A146: 143 | B146: 143 | C146: 2035-01-15 | D146: 1 | E146: =IF(ISERROR(MATCH(D146,'CrediAltoque (SI)'!$H$18:$H$19,0))=FALSE,"C",IF(ISERROR(MATCH(D146,'CrediAltoque (SI)'!$H$20:$H$21,0))=FALSE,"D","")) ->  | F146: =IF(E146="C",0,IF(E146 ="D",ROUND(1/((1+'CrediAltoque (SI)'!$R$14)^A146),9) * 2,ROUND(1/((1+'CrediAltoque (SI)'!$R$14)^A146),9))) -> 0.000676254 | G146: 19.0832203
A147: 144 | B147: 144 | C147: 2035-02-15 | D147: 2 | E147: =IF(ISERROR(MATCH(D147,'CrediAltoque (SI)'!$H$18:$H$19,0))=FALSE,"C",IF(ISERROR(MATCH(D147,'CrediAltoque (SI)'!$H$20:$H$21,0))=FALSE,"D","")) ->  | F147: =IF(E147="C",0,IF(E147 ="D",ROUND(1/((1+'CrediAltoque (SI)'!$R$14)^A147),9) * 2,ROUND(1/((1+'CrediAltoque (SI)'!$R$14)^A147),9))) -> 0.000642603 | G147: 19.08386291
A148: 145 | B148: 145 | C148: 2035-03-15 | D148: 3 | E148: =IF(ISERROR(MATCH(D148,'CrediAltoque (SI)'!$H$18:$H$19,0))=FALSE,"C",IF(ISERROR(MATCH(D148,'CrediAltoque (SI)'!$H$20:$H$21,0))=FALSE,"D","")) ->  | F148: =IF(E148="C",0,IF(E148 ="D",ROUND(1/((1+'CrediAltoque (SI)'!$R$14)^A148),9) * 2,ROUND(1/((1+'CrediAltoque (SI)'!$R$14)^A148),9))) -> 0.000610627 | G148: 19.08447353
A149: 146 | B149: 146 | C149: 2035-04-15 | D149: 4 | E149: =IF(ISERROR(MATCH(D149,'CrediAltoque (SI)'!$H$18:$H$19,0))=FALSE,"C",IF(ISERROR(MATCH(D149,'CrediAltoque (SI)'!$H$20:$H$21,0))=FALSE,"D","")) ->  | F149: =IF(E149="C",0,IF(E149 ="D",ROUND(1/((1+'CrediAltoque (SI)'!$R$14)^A149),9) * 2,ROUND(1/((1+'CrediAltoque (SI)'!$R$14)^A149),9))) -> 0.000580241 | G149: 19.08505377
A150: 147 | B150: 147 | C150: 2035-05-15 | D150: 5 | E150: =IF(ISERROR(MATCH(D150,'CrediAltoque (SI)'!$H$18:$H$19,0))=FALSE,"C",IF(ISERROR(MATCH(D150,'CrediAltoque (SI)'!$H$20:$H$21,0))=FALSE,"D","")) ->  | F150: =IF(E150="C",0,IF(E150 ="D",ROUND(1/((1+'CrediAltoque (SI)'!$R$14)^A150),9) * 2,ROUND(1/((1+'CrediAltoque (SI)'!$R$14)^A150),9))) -> 0.000551368 | G150: 19.08560514
A151: 148 | B151: 148 | C151: 2035-06-15 | D151: 6 | E151: =IF(ISERROR(MATCH(D151,'CrediAltoque (SI)'!$H$18:$H$19,0))=FALSE,"C",IF(ISERROR(MATCH(D151,'CrediAltoque (SI)'!$H$20:$H$21,0))=FALSE,"D","")) ->  | F151: =IF(E151="C",0,IF(E151 ="D",ROUND(1/((1+'CrediAltoque (SI)'!$R$14)^A151),9) * 2,ROUND(1/((1+'CrediAltoque (SI)'!$R$14)^A151),9))) -> 0.000523931 | G151: 19.08612907
A152: 149 | B152: 149 | C152: 2035-07-15 | D152: 7 | E152: =IF(ISERROR(MATCH(D152,'CrediAltoque (SI)'!$H$18:$H$19,0))=FALSE,"C",IF(ISERROR(MATCH(D152,'CrediAltoque (SI)'!$H$20:$H$21,0))=FALSE,"D","")) ->  | F152: =IF(E152="C",0,IF(E152 ="D",ROUND(1/((1+'CrediAltoque (SI)'!$R$14)^A152),9) * 2,ROUND(1/((1+'CrediAltoque (SI)'!$R$14)^A152),9))) -> 0.00049786 | G152: 19.08662693
A153: 150 | B153: 150 | C153: 2035-08-15 | D153: 8 | E153: =IF(ISERROR(MATCH(D153,'CrediAltoque (SI)'!$H$18:$H$19,0))=FALSE,"C",IF(ISERROR(MATCH(D153,'CrediAltoque (SI)'!$H$20:$H$21,0))=FALSE,"D","")) ->  | F153: =IF(E153="C",0,IF(E153 ="D",ROUND(1/((1+'CrediAltoque (SI)'!$R$14)^A153),9) * 2,ROUND(1/((1+'CrediAltoque (SI)'!$R$14)^A153),9))) -> 0.000473086 | G153: 19.08710002
A154: 151 | B154: 151 | C154: 2035-09-15 | D154: 9 | E154: =IF(ISERROR(MATCH(D154,'CrediAltoque (SI)'!$H$18:$H$19,0))=FALSE,"C",IF(ISERROR(MATCH(D154,'CrediAltoque (SI)'!$H$20:$H$21,0))=FALSE,"D","")) ->  | F154: =IF(E154="C",0,IF(E154 ="D",ROUND(1/((1+'CrediAltoque (SI)'!$R$14)^A154),9) * 2,ROUND(1/((1+'CrediAltoque (SI)'!$R$14)^A154),9))) -> 0.000449545 | G154: 19.08754956
A155: 152 | B155: 152 | C155: 2035-10-15 | D155: 10 | E155: =IF(ISERROR(MATCH(D155,'CrediAltoque (SI)'!$H$18:$H$19,0))=FALSE,"C",IF(ISERROR(MATCH(D155,'CrediAltoque (SI)'!$H$20:$H$21,0))=FALSE,"D","")) ->  | F155: =IF(E155="C",0,IF(E155 ="D",ROUND(1/((1+'CrediAltoque (SI)'!$R$14)^A155),9) * 2,ROUND(1/((1+'CrediAltoque (SI)'!$R$14)^A155),9))) -> 0.000427175 | G155: 19.08797674
A156: 153 | B156: 153 | C156: 2035-11-15 | D156: 11 | E156: =IF(ISERROR(MATCH(D156,'CrediAltoque (SI)'!$H$18:$H$19,0))=FALSE,"C",IF(ISERROR(MATCH(D156,'CrediAltoque (SI)'!$H$20:$H$21,0))=FALSE,"D","")) ->  | F156: =IF(E156="C",0,IF(E156 ="D",ROUND(1/((1+'CrediAltoque (SI)'!$R$14)^A156),9) * 2,ROUND(1/((1+'CrediAltoque (SI)'!$R$14)^A156),9))) -> 0.000405919 | G156: 19.08838266
A157: 154 | B157: 154 | C157: 2035-12-15 | D157: 12 | E157: =IF(ISERROR(MATCH(D157,'CrediAltoque (SI)'!$H$18:$H$19,0))=FALSE,"C",IF(ISERROR(MATCH(D157,'CrediAltoque (SI)'!$H$20:$H$21,0))=FALSE,"D","")) ->  | F157: =IF(E157="C",0,IF(E157 ="D",ROUND(1/((1+'CrediAltoque (SI)'!$R$14)^A157),9) * 2,ROUND(1/((1+'CrediAltoque (SI)'!$R$14)^A157),9))) -> 0.00038572 | G157: 19.08876838
A158: 155 | B158: 155 | C158: 2036-01-15 | D158: 1 | E158: =IF(ISERROR(MATCH(D158,'CrediAltoque (SI)'!$H$18:$H$19,0))=FALSE,"C",IF(ISERROR(MATCH(D158,'CrediAltoque (SI)'!$H$20:$H$21,0))=FALSE,"D","")) ->  | F158: =IF(E158="C",0,IF(E158 ="D",ROUND(1/((1+'CrediAltoque (SI)'!$R$14)^A158),9) * 2,ROUND(1/((1+'CrediAltoque (SI)'!$R$14)^A158),9))) -> 0.000366526 | G158: 19.0891349
A159: 156 | B159: 156 | C159: 2036-02-15 | D159: 2 | E159: =IF(ISERROR(MATCH(D159,'CrediAltoque (SI)'!$H$18:$H$19,0))=FALSE,"C",IF(ISERROR(MATCH(D159,'CrediAltoque (SI)'!$H$20:$H$21,0))=FALSE,"D","")) ->  | F159: =IF(E159="C",0,IF(E159 ="D",ROUND(1/((1+'CrediAltoque (SI)'!$R$14)^A159),9) * 2,ROUND(1/((1+'CrediAltoque (SI)'!$R$14)^A159),9))) -> 0.000348288 | G159: 19.08948319
A160: 157 | B160: 157 | C160: 2036-03-15 | D160: 3 | E160: =IF(ISERROR(MATCH(D160,'CrediAltoque (SI)'!$H$18:$H$19,0))=FALSE,"C",IF(ISERROR(MATCH(D160,'CrediAltoque (SI)'!$H$20:$H$21,0))=FALSE,"D","")) ->  | F160: =IF(E160="C",0,IF(E160 ="D",ROUND(1/((1+'CrediAltoque (SI)'!$R$14)^A160),9) * 2,ROUND(1/((1+'CrediAltoque (SI)'!$R$14)^A160),9))) -> 0.000330956 | G160: 19.08981415
A161: 158 | B161: 158 | C161: 2036-04-15 | D161: 4 | E161: =IF(ISERROR(MATCH(D161,'CrediAltoque (SI)'!$H$18:$H$19,0))=FALSE,"C",IF(ISERROR(MATCH(D161,'CrediAltoque (SI)'!$H$20:$H$21,0))=FALSE,"D","")) ->  | F161: =IF(E161="C",0,IF(E161 ="D",ROUND(1/((1+'CrediAltoque (SI)'!$R$14)^A161),9) * 2,ROUND(1/((1+'CrediAltoque (SI)'!$R$14)^A161),9))) -> 0.000314488 | G161: 19.09012864
A162: 159 | B162: 159 | C162: 2036-05-15 | D162: 5 | E162: =IF(ISERROR(MATCH(D162,'CrediAltoque (SI)'!$H$18:$H$19,0))=FALSE,"C",IF(ISERROR(MATCH(D162,'CrediAltoque (SI)'!$H$20:$H$21,0))=FALSE,"D","")) ->  | F162: =IF(E162="C",0,IF(E162 ="D",ROUND(1/((1+'CrediAltoque (SI)'!$R$14)^A162),9) * 2,ROUND(1/((1+'CrediAltoque (SI)'!$R$14)^A162),9))) -> 0.000298839 | G162: 19.09042747
A163: 160 | B163: 160 | C163: 2036-06-15 | D163: 6 | E163: =IF(ISERROR(MATCH(D163,'CrediAltoque (SI)'!$H$18:$H$19,0))=FALSE,"C",IF(ISERROR(MATCH(D163,'CrediAltoque (SI)'!$H$20:$H$21,0))=FALSE,"D","")) ->  | F163: =IF(E163="C",0,IF(E163 ="D",ROUND(1/((1+'CrediAltoque (SI)'!$R$14)^A163),9) * 2,ROUND(1/((1+'CrediAltoque (SI)'!$R$14)^A163),9))) -> 0.000283968 | G163: 19.09071144
A164: 161 | B164: 161 | C164: 2036-07-15 | D164: 7 | E164: =IF(ISERROR(MATCH(D164,'CrediAltoque (SI)'!$H$18:$H$19,0))=FALSE,"C",IF(ISERROR(MATCH(D164,'CrediAltoque (SI)'!$H$20:$H$21,0))=FALSE,"D","")) ->  | F164: =IF(E164="C",0,IF(E164 ="D",ROUND(1/((1+'CrediAltoque (SI)'!$R$14)^A164),9) * 2,ROUND(1/((1+'CrediAltoque (SI)'!$R$14)^A164),9))) -> 0.000269838 | G164: 19.09098128
A165: 162 | B165: 162 | C165: 2036-08-15 | D165: 8 | E165: =IF(ISERROR(MATCH(D165,'CrediAltoque (SI)'!$H$18:$H$19,0))=FALSE,"C",IF(ISERROR(MATCH(D165,'CrediAltoque (SI)'!$H$20:$H$21,0))=FALSE,"D","")) ->  | F165: =IF(E165="C",0,IF(E165 ="D",ROUND(1/((1+'CrediAltoque (SI)'!$R$14)^A165),9) * 2,ROUND(1/((1+'CrediAltoque (SI)'!$R$14)^A165),9))) -> 0.00025641 | G165: 19.09123769
A166: 163 | B166: 163 | C166: 2036-09-15 | D166: 9 | E166: =IF(ISERROR(MATCH(D166,'CrediAltoque (SI)'!$H$18:$H$19,0))=FALSE,"C",IF(ISERROR(MATCH(D166,'CrediAltoque (SI)'!$H$20:$H$21,0))=FALSE,"D","")) ->  | F166: =IF(E166="C",0,IF(E166 ="D",ROUND(1/((1+'CrediAltoque (SI)'!$R$14)^A166),9) * 2,ROUND(1/((1+'CrediAltoque (SI)'!$R$14)^A166),9))) -> 0.000243651 | G166: 19.09148134
A167: 164 | B167: 164 | C167: 2036-10-15 | D167: 10 | E167: =IF(ISERROR(MATCH(D167,'CrediAltoque (SI)'!$H$18:$H$19,0))=FALSE,"C",IF(ISERROR(MATCH(D167,'CrediAltoque (SI)'!$H$20:$H$21,0))=FALSE,"D","")) ->  | F167: =IF(E167="C",0,IF(E167 ="D",ROUND(1/((1+'CrediAltoque (SI)'!$R$14)^A167),9) * 2,ROUND(1/((1+'CrediAltoque (SI)'!$R$14)^A167),9))) -> 0.000231527 | G167: 19.09171287
A168: 165 | B168: 165 | C168: 2036-11-15 | D168: 11 | E168: =IF(ISERROR(MATCH(D168,'CrediAltoque (SI)'!$H$18:$H$19,0))=FALSE,"C",IF(ISERROR(MATCH(D168,'CrediAltoque (SI)'!$H$20:$H$21,0))=FALSE,"D","")) ->  | F168: =IF(E168="C",0,IF(E168 ="D",ROUND(1/((1+'CrediAltoque (SI)'!$R$14)^A168),9) * 2,ROUND(1/((1+'CrediAltoque (SI)'!$R$14)^A168),9))) -> 0.000220006 | G168: 19.09193287
A169: 166 | B169: 166 | C169: 2036-12-15 | D169: 12 | E169: =IF(ISERROR(MATCH(D169,'CrediAltoque (SI)'!$H$18:$H$19,0))=FALSE,"C",IF(ISERROR(MATCH(D169,'CrediAltoque (SI)'!$H$20:$H$21,0))=FALSE,"D","")) ->  | F169: =IF(E169="C",0,IF(E169 ="D",ROUND(1/((1+'CrediAltoque (SI)'!$R$14)^A169),9) * 2,ROUND(1/((1+'CrediAltoque (SI)'!$R$14)^A169),9))) -> 0.000209058 | G169: 19.09214193
A170: 167 | B170: 167 | C170: 2037-01-15 | D170: 1 | E170: =IF(ISERROR(MATCH(D170,'CrediAltoque (SI)'!$H$18:$H$19,0))=FALSE,"C",IF(ISERROR(MATCH(D170,'CrediAltoque (SI)'!$H$20:$H$21,0))=FALSE,"D","")) ->  | F170: =IF(E170="C",0,IF(E170 ="D",ROUND(1/((1+'CrediAltoque (SI)'!$R$14)^A170),9) * 2,ROUND(1/((1+'CrediAltoque (SI)'!$R$14)^A170),9))) -> 0.000198655 | G170: 19.09234059
A171: 168 | B171: 168 | C171: 2037-02-15 | D171: 2 | E171: =IF(ISERROR(MATCH(D171,'CrediAltoque (SI)'!$H$18:$H$19,0))=FALSE,"C",IF(ISERROR(MATCH(D171,'CrediAltoque (SI)'!$H$20:$H$21,0))=FALSE,"D","")) ->  | F171: =IF(E171="C",0,IF(E171 ="D",ROUND(1/((1+'CrediAltoque (SI)'!$R$14)^A171),9) * 2,ROUND(1/((1+'CrediAltoque (SI)'!$R$14)^A171),9))) -> 0.00018877 | G171: 19.09252936
A172: 169 | B172: 169 | C172: 2037-03-15 | D172: 3 | E172: =IF(ISERROR(MATCH(D172,'CrediAltoque (SI)'!$H$18:$H$19,0))=FALSE,"C",IF(ISERROR(MATCH(D172,'CrediAltoque (SI)'!$H$20:$H$21,0))=FALSE,"D","")) ->  | F172: =IF(E172="C",0,IF(E172 ="D",ROUND(1/((1+'CrediAltoque (SI)'!$R$14)^A172),9) * 2,ROUND(1/((1+'CrediAltoque (SI)'!$R$14)^A172),9))) -> 0.000179377 | G172: 19.09270873
A173: 170 | B173: 170 | C173: 2037-04-15 | D173: 4 | E173: =IF(ISERROR(MATCH(D173,'CrediAltoque (SI)'!$H$18:$H$19,0))=FALSE,"C",IF(ISERROR(MATCH(D173,'CrediAltoque (SI)'!$H$20:$H$21,0))=FALSE,"D","")) ->  | F173: =IF(E173="C",0,IF(E173 ="D",ROUND(1/((1+'CrediAltoque (SI)'!$R$14)^A173),9) * 2,ROUND(1/((1+'CrediAltoque (SI)'!$R$14)^A173),9))) -> 0.000170451 | G173: 19.09287919
A174: 171 | B174: 171 | C174: 2037-05-15 | D174: 5 | E174: =IF(ISERROR(MATCH(D174,'CrediAltoque (SI)'!$H$18:$H$19,0))=FALSE,"C",IF(ISERROR(MATCH(D174,'CrediAltoque (SI)'!$H$20:$H$21,0))=FALSE,"D","")) ->  | F174: =IF(E174="C",0,IF(E174 ="D",ROUND(1/((1+'CrediAltoque (SI)'!$R$14)^A174),9) * 2,ROUND(1/((1+'CrediAltoque (SI)'!$R$14)^A174),9))) -> 0.000161969 | G174: 19.09304115
A175: 172 | B175: 172 | C175: 2037-06-15 | D175: 6 | E175: =IF(ISERROR(MATCH(D175,'CrediAltoque (SI)'!$H$18:$H$19,0))=FALSE,"C",IF(ISERROR(MATCH(D175,'CrediAltoque (SI)'!$H$20:$H$21,0))=FALSE,"D","")) ->  | F175: =IF(E175="C",0,IF(E175 ="D",ROUND(1/((1+'CrediAltoque (SI)'!$R$14)^A175),9) * 2,ROUND(1/((1+'CrediAltoque (SI)'!$R$14)^A175),9))) -> 0.000153909 | G175: 19.09319506
A176: 173 | B176: 173 | C176: 2037-07-15 | D176: 7 | E176: =IF(ISERROR(MATCH(D176,'CrediAltoque (SI)'!$H$18:$H$19,0))=FALSE,"C",IF(ISERROR(MATCH(D176,'CrediAltoque (SI)'!$H$20:$H$21,0))=FALSE,"D","")) ->  | F176: =IF(E176="C",0,IF(E176 ="D",ROUND(1/((1+'CrediAltoque (SI)'!$R$14)^A176),9) * 2,ROUND(1/((1+'CrediAltoque (SI)'!$R$14)^A176),9))) -> 0.000146251 | G176: 19.09334131
A177: 174 | B177: 174 | C177: 2037-08-15 | D177: 8 | E177: =IF(ISERROR(MATCH(D177,'CrediAltoque (SI)'!$H$18:$H$19,0))=FALSE,"C",IF(ISERROR(MATCH(D177,'CrediAltoque (SI)'!$H$20:$H$21,0))=FALSE,"D","")) ->  | F177: =IF(E177="C",0,IF(E177 ="D",ROUND(1/((1+'CrediAltoque (SI)'!$R$14)^A177),9) * 2,ROUND(1/((1+'CrediAltoque (SI)'!$R$14)^A177),9))) -> 0.000138973 | G177: 19.09348029
A178: 175 | B178: 175 | C178: 2037-09-15 | D178: 9 | E178: =IF(ISERROR(MATCH(D178,'CrediAltoque (SI)'!$H$18:$H$19,0))=FALSE,"C",IF(ISERROR(MATCH(D178,'CrediAltoque (SI)'!$H$20:$H$21,0))=FALSE,"D","")) ->  | F178: =IF(E178="C",0,IF(E178 ="D",ROUND(1/((1+'CrediAltoque (SI)'!$R$14)^A178),9) * 2,ROUND(1/((1+'CrediAltoque (SI)'!$R$14)^A178),9))) -> 0.000132058 | G178: 19.09361235
A179: 176 | B179: 176 | C179: 2037-10-15 | D179: 10 | E179: =IF(ISERROR(MATCH(D179,'CrediAltoque (SI)'!$H$18:$H$19,0))=FALSE,"C",IF(ISERROR(MATCH(D179,'CrediAltoque (SI)'!$H$20:$H$21,0))=FALSE,"D","")) ->  | F179: =IF(E179="C",0,IF(E179 ="D",ROUND(1/((1+'CrediAltoque (SI)'!$R$14)^A179),9) * 2,ROUND(1/((1+'CrediAltoque (SI)'!$R$14)^A179),9))) -> 0.000125486 | G179: 19.09373783
A180: 177 | B180: 177 | C180: 2037-11-15 | D180: 11 | E180: =IF(ISERROR(MATCH(D180,'CrediAltoque (SI)'!$H$18:$H$19,0))=FALSE,"C",IF(ISERROR(MATCH(D180,'CrediAltoque (SI)'!$H$20:$H$21,0))=FALSE,"D","")) ->  | F180: =IF(E180="C",0,IF(E180 ="D",ROUND(1/((1+'CrediAltoque (SI)'!$R$14)^A180),9) * 2,ROUND(1/((1+'CrediAltoque (SI)'!$R$14)^A180),9))) -> 0.000119242 | G180: 19.09385707
A181: 178 | B181: 178 | C181: 2037-12-15 | D181: 12 | E181: =IF(ISERROR(MATCH(D181,'CrediAltoque (SI)'!$H$18:$H$19,0))=FALSE,"C",IF(ISERROR(MATCH(D181,'CrediAltoque (SI)'!$H$20:$H$21,0))=FALSE,"D","")) ->  | F181: =IF(E181="C",0,IF(E181 ="D",ROUND(1/((1+'CrediAltoque (SI)'!$R$14)^A181),9) * 2,ROUND(1/((1+'CrediAltoque (SI)'!$R$14)^A181),9))) -> 0.000113309 | G181: 19.09397038
A182: 179 | B182: 179 | C182: 2038-01-15 | D182: 1 | E182: =IF(ISERROR(MATCH(D182,'CrediAltoque (SI)'!$H$18:$H$19,0))=FALSE,"C",IF(ISERROR(MATCH(D182,'CrediAltoque (SI)'!$H$20:$H$21,0))=FALSE,"D","")) ->  | F182: =IF(E182="C",0,IF(E182 ="D",ROUND(1/((1+'CrediAltoque (SI)'!$R$14)^A182),9) * 2,ROUND(1/((1+'CrediAltoque (SI)'!$R$14)^A182),9))) -> 0.00010767 | G182: 19.09407805
A183: 180 | B183: 180 | C183: 2038-02-15 | D183: 2 | E183: =IF(ISERROR(MATCH(D183,'CrediAltoque (SI)'!$H$18:$H$19,0))=FALSE,"C",IF(ISERROR(MATCH(D183,'CrediAltoque (SI)'!$H$20:$H$21,0))=FALSE,"D","")) ->  | F183: =IF(E183="C",0,IF(E183 ="D",ROUND(1/((1+'CrediAltoque (SI)'!$R$14)^A183),9) * 2,ROUND(1/((1+'CrediAltoque (SI)'!$R$14)^A183),9))) -> 0.000102312 | G183: 19.09418036
A184: 181 | B184: 181 | C184: 2038-03-15 | D184: 3 | E184: =IF(ISERROR(MATCH(D184,'CrediAltoque (SI)'!$H$18:$H$19,0))=FALSE,"C",IF(ISERROR(MATCH(D184,'CrediAltoque (SI)'!$H$20:$H$21,0))=FALSE,"D","")) ->  | F184: =IF(E184="C",0,IF(E184 ="D",ROUND(1/((1+'CrediAltoque (SI)'!$R$14)^A184),9) * 2,ROUND(1/((1+'CrediAltoque (SI)'!$R$14)^A184),9))) -> 9.7221e-05 | G184: 19.09427759
A185: 182 | B185: 182 | C185: 2038-04-15 | D185: 4 | E185: =IF(ISERROR(MATCH(D185,'CrediAltoque (SI)'!$H$18:$H$19,0))=FALSE,"C",IF(ISERROR(MATCH(D185,'CrediAltoque (SI)'!$H$20:$H$21,0))=FALSE,"D","")) ->  | F185: =IF(E185="C",0,IF(E185 ="D",ROUND(1/((1+'CrediAltoque (SI)'!$R$14)^A185),9) * 2,ROUND(1/((1+'CrediAltoque (SI)'!$R$14)^A185),9))) -> 9.2383e-05 | G185: 19.09436997
A186: 183 | B186: 183 | C186: 2038-05-15 | D186: 5 | E186: =IF(ISERROR(MATCH(D186,'CrediAltoque (SI)'!$H$18:$H$19,0))=FALSE,"C",IF(ISERROR(MATCH(D186,'CrediAltoque (SI)'!$H$20:$H$21,0))=FALSE,"D","")) ->  | F186: =IF(E186="C",0,IF(E186 ="D",ROUND(1/((1+'CrediAltoque (SI)'!$R$14)^A186),9) * 2,ROUND(1/((1+'CrediAltoque (SI)'!$R$14)^A186),9))) -> 8.7786e-05 | G186: 19.09445775
A187: 184 | B187: 184 | C187: 2038-06-15 | D187: 6 | E187: =IF(ISERROR(MATCH(D187,'CrediAltoque (SI)'!$H$18:$H$19,0))=FALSE,"C",IF(ISERROR(MATCH(D187,'CrediAltoque (SI)'!$H$20:$H$21,0))=FALSE,"D","")) ->  | F187: =IF(E187="C",0,IF(E187 ="D",ROUND(1/((1+'CrediAltoque (SI)'!$R$14)^A187),9) * 2,ROUND(1/((1+'CrediAltoque (SI)'!$R$14)^A187),9))) -> 8.3418e-05 | G187: 19.09454117
A188: 185 | B188: 185 | C188: 2038-07-15 | D188: 7 | E188: =IF(ISERROR(MATCH(D188,'CrediAltoque (SI)'!$H$18:$H$19,0))=FALSE,"C",IF(ISERROR(MATCH(D188,'CrediAltoque (SI)'!$H$20:$H$21,0))=FALSE,"D","")) ->  | F188: =IF(E188="C",0,IF(E188 ="D",ROUND(1/((1+'CrediAltoque (SI)'!$R$14)^A188),9) * 2,ROUND(1/((1+'CrediAltoque (SI)'!$R$14)^A188),9))) -> 7.9267e-05 | G188: 19.09462044
A189: 186 | B189: 186 | C189: 2038-08-15 | D189: 8 | E189: =IF(ISERROR(MATCH(D189,'CrediAltoque (SI)'!$H$18:$H$19,0))=FALSE,"C",IF(ISERROR(MATCH(D189,'CrediAltoque (SI)'!$H$20:$H$21,0))=FALSE,"D","")) ->  | F189: =IF(E189="C",0,IF(E189 ="D",ROUND(1/((1+'CrediAltoque (SI)'!$R$14)^A189),9) * 2,ROUND(1/((1+'CrediAltoque (SI)'!$R$14)^A189),9))) -> 7.5323e-05 | G189: 19.09469576
A190: 187 | B190: 187 | C190: 2038-09-15 | D190: 9 | E190: =IF(ISERROR(MATCH(D190,'CrediAltoque (SI)'!$H$18:$H$19,0))=FALSE,"C",IF(ISERROR(MATCH(D190,'CrediAltoque (SI)'!$H$20:$H$21,0))=FALSE,"D","")) ->  | F190: =IF(E190="C",0,IF(E190 ="D",ROUND(1/((1+'CrediAltoque (SI)'!$R$14)^A190),9) * 2,ROUND(1/((1+'CrediAltoque (SI)'!$R$14)^A190),9))) -> 7.1575e-05 | G190: 19.09476734
A191: 188 | B191: 188 | C191: 2038-10-15 | D191: 10 | E191: =IF(ISERROR(MATCH(D191,'CrediAltoque (SI)'!$H$18:$H$19,0))=FALSE,"C",IF(ISERROR(MATCH(D191,'CrediAltoque (SI)'!$H$20:$H$21,0))=FALSE,"D","")) ->  | F191: =IF(E191="C",0,IF(E191 ="D",ROUND(1/((1+'CrediAltoque (SI)'!$R$14)^A191),9) * 2,ROUND(1/((1+'CrediAltoque (SI)'!$R$14)^A191),9))) -> 6.8013e-05 | G191: 19.09483535
A192: 189 | B192: 189 | C192: 2038-11-15 | D192: 11 | E192: =IF(ISERROR(MATCH(D192,'CrediAltoque (SI)'!$H$18:$H$19,0))=FALSE,"C",IF(ISERROR(MATCH(D192,'CrediAltoque (SI)'!$H$20:$H$21,0))=FALSE,"D","")) ->  | F192: =IF(E192="C",0,IF(E192 ="D",ROUND(1/((1+'CrediAltoque (SI)'!$R$14)^A192),9) * 2,ROUND(1/((1+'CrediAltoque (SI)'!$R$14)^A192),9))) -> 6.4629e-05 | G192: 19.09489998
A193: 190 | B193: 190 | C193: 2038-12-15 | D193: 12 | E193: =IF(ISERROR(MATCH(D193,'CrediAltoque (SI)'!$H$18:$H$19,0))=FALSE,"C",IF(ISERROR(MATCH(D193,'CrediAltoque (SI)'!$H$20:$H$21,0))=FALSE,"D","")) ->  | F193: =IF(E193="C",0,IF(E193 ="D",ROUND(1/((1+'CrediAltoque (SI)'!$R$14)^A193),9) * 2,ROUND(1/((1+'CrediAltoque (SI)'!$R$14)^A193),9))) -> 6.1413e-05 | G193: 19.09496139
A194: 191 | B194: 191 | C194: 2039-01-15 | D194: 1 | E194: =IF(ISERROR(MATCH(D194,'CrediAltoque (SI)'!$H$18:$H$19,0))=FALSE,"C",IF(ISERROR(MATCH(D194,'CrediAltoque (SI)'!$H$20:$H$21,0))=FALSE,"D","")) ->  | F194: =IF(E194="C",0,IF(E194 ="D",ROUND(1/((1+'CrediAltoque (SI)'!$R$14)^A194),9) * 2,ROUND(1/((1+'CrediAltoque (SI)'!$R$14)^A194),9))) -> 5.8357e-05 | G194: 19.09501975
A195: 192 | B195: 192 | C195: 2039-02-15 | D195: 2 | E195: =IF(ISERROR(MATCH(D195,'CrediAltoque (SI)'!$H$18:$H$19,0))=FALSE,"C",IF(ISERROR(MATCH(D195,'CrediAltoque (SI)'!$H$20:$H$21,0))=FALSE,"D","")) ->  | F195: =IF(E195="C",0,IF(E195 ="D",ROUND(1/((1+'CrediAltoque (SI)'!$R$14)^A195),9) * 2,ROUND(1/((1+'CrediAltoque (SI)'!$R$14)^A195),9))) -> 5.5453e-05 | G195: 19.0950752
A196: 193 | B196: 193 | C196: 2039-03-15 | D196: =MONTH(C196) -> 3 | E196: =IF(ISERROR(MATCH(D196,'CrediAltoque (SI)'!$H$18:$H$19,0))=FALSE,"C",IF(ISERROR(MATCH(D196,'CrediAltoque (SI)'!$H$20:$H$21,0))=FALSE,"D","")) ->  | F196: =IF(E196="C",0,IF(E196 ="D",ROUND(1/((1+'CrediAltoque (SI)'!$R$14)^A196),9) * 2,ROUND(1/((1+'CrediAltoque (SI)'!$R$14)^A196),9))) -> 5.2693e-05 | G196: 19.0951279
A197: =A196+1 -> 194 | B197: =IF(E197<>"C",IF(ISERROR(1+B196)=TRUE,1,1+B196),IF(ISNUMBER(B196),B196,1)) -> 194 | C197: =DATE(YEAR(C196) + 1/12,MONTH(C196)+1,DAY(C196)) -> 2039-04-15 | D197: 4 | E197: =IF(ISERROR(MATCH(D197,'CrediAltoque (SI)'!$H$18:$H$19,0))=FALSE,"C",IF(ISERROR(MATCH(D197,'CrediAltoque (SI)'!$H$20:$H$21,0))=FALSE,"D","")) ->  | F197: =IF(E197="C",0,IF(E197 ="D",ROUND(1/((1+'CrediAltoque (SI)'!$R$14)^A197),9) * 2,ROUND(1/((1+'CrediAltoque (SI)'!$R$14)^A197),9))) -> 5.0071e-05 | G197: 19.09517797
A198: 195 | B198: 195 | C198: 2039-05-15 | D198: 5 | E198: =IF(ISERROR(MATCH(D198,'CrediAltoque (SI)'!$H$18:$H$19,0))=FALSE,"C",IF(ISERROR(MATCH(D198,'CrediAltoque (SI)'!$H$20:$H$21,0))=FALSE,"D","")) ->  | F198: =IF(E198="C",0,IF(E198 ="D",ROUND(1/((1+'CrediAltoque (SI)'!$R$14)^A198),9) * 2,ROUND(1/((1+'CrediAltoque (SI)'!$R$14)^A198),9))) -> 4.758e-05 | G198: =G197+ROUND(F198,9) -> 19.09522555
A199: 196 | B199: 196 | C199: 2039-06-15 | D199: 6 | E199: =IF(ISERROR(MATCH(D199,'CrediAltoque (SI)'!$H$18:$H$19,0))=FALSE,"C",IF(ISERROR(MATCH(D199,'CrediAltoque (SI)'!$H$20:$H$21,0))=FALSE,"D","")) ->  | F199: =IF(E199="C",0,IF(E199 ="D",ROUND(1/((1+'CrediAltoque (SI)'!$R$14)^A199),9) * 2,ROUND(1/((1+'CrediAltoque (SI)'!$R$14)^A199),9))) -> 4.5212e-05 | G199: 19.09527076
A200: 197 | B200: 197 | C200: 2039-07-15 | D200: 7 | E200: =IF(ISERROR(MATCH(D200,'CrediAltoque (SI)'!$H$18:$H$19,0))=FALSE,"C",IF(ISERROR(MATCH(D200,'CrediAltoque (SI)'!$H$20:$H$21,0))=FALSE,"D","")) ->  | F200: =IF(E200="C",0,IF(E200 ="D",ROUND(1/((1+'CrediAltoque (SI)'!$R$14)^A200),9) * 2,ROUND(1/((1+'CrediAltoque (SI)'!$R$14)^A200),9))) -> 4.2962e-05 | G200: 19.09531372
A201: 198 | B201: 198 | C201: 2039-08-15 | D201: 8 | E201: =IF(ISERROR(MATCH(D201,'CrediAltoque (SI)'!$H$18:$H$19,0))=FALSE,"C",IF(ISERROR(MATCH(D201,'CrediAltoque (SI)'!$H$20:$H$21,0))=FALSE,"D","")) ->  | F201: =IF(E201="C",0,IF(E201 ="D",ROUND(1/((1+'CrediAltoque (SI)'!$R$14)^A201),9) * 2,ROUND(1/((1+'CrediAltoque (SI)'!$R$14)^A201),9))) -> 4.0825e-05 | G201: 19.09535455
... 185 more rows
